Workbook

Sheet Start
D11: Tabelid 2
D13: Andmeloendid. Andmeanalüüs ja andmete korrastamine
D15: Sorteerimine, filtreerimine, kokkuvõtted, koondid jm

Sheet Sisukord
B4: Andmeloendite põhiomadused ja põhitegevused nendega
B5: Arvutite müükide arvestus
B6: Töötajate nimekiri
B7: Puidu müükide tabel
B8: Tabeli kirjete sorteerimine ja grupeerimine
B9: Päringud ja filtreerimine
B10: Autofilter
B11: Arendatud filter
B12: Makro kasutamine arendatud filtriga
B13: Kokkuvõtted, koondid jmt
B14: Vahekokkuvõtted - Subtotals
B15: Risttabelid - Pivot Table Report
B16: Funktsioonid COUNTIF ja SUMIF
B17: Andmebaaside funktsioonid

Sheet Loendid
E1: veeb | F1: klipp Andmeloendid
A3: Andmeloendite põhiomadused ja põhitegevused nendega
H4: Arvutid
H6: Mark | I6: Protsessori tüüp | J6: Takt- sagedus | K6: Põhimälu maht | L6: Kõvaketta maht | M6: Hind
H7: Aragorn | I7: AMD Athlon64 | J7: 3 | K7: 512 | L7: 160 | M7: 499 | O7: Kauri ema
H8: Arven | I8: Intel Core 2 | J8: 2.6 | K8: 256 | L8: 200 | M8: 369
H9: Balrog | I9: Intel Celeron | J9: 2.8 | K9: 256 | L9: 80 | M9: 419
H10: Eldar | I10: Intel Xeon | J10: 3 | K10: 512 | L10: 160 | M10: 465
H11: Elend | I11: Intel Celeron | J11: 4 | K11: 2048 | L11: 400 | M11: 920
H12: Faram | I12: AMD Athlon64 | J12: 3 | K12: 512 | L12: 210 | M12: 599
H13: Frodo | I13: AMD Athlon64 | J13: 3 | K13: 4072 | L13: 500 | M13: 870
B14: Põhitegevused | H14: Gandalf | I14: Intel Xeon | J14: 3.2 | K14: 512 | L14: 160 | M14: 849
H15: Grimbold | I15: Intel Core 2 | J15: 3.8 | K15: 1024 | L15: 320 | M15: 1149
H16: Kalvar | I16: Intel Xeon | J16: 3 | K16: 512 | L16: 160 | M16: 699
H17: Marvin | I17: Intel Celeron | J17: 3 | K17: 512 | L17: 160 | M17: 370
H18: Rohan | I18: AMD Athlon64 | J18: 3.5 | K18: 512 | L18: 160 | M18: 340
H19: Sauron | I19: Intel Xeon | J19: 2.5 | K19: 256 | L19: 180 | M19: 339

Sheet A_müügid
B3: Arvutite müükide arvestus | F3: arvutid
D5: Kokku | E5: =SUM(Arv) -> 90 | G5: =SUM(Maksumus) -> 55522
B7: Kuupäev | C7: Linn | D7: Arvuti | E7: Arv | F7: Hind | G7: Maksumus
B8: 2013-01-02 | C8: Tallinn | D8: Frodo | E8: 2 | F8: =VLOOKUP(Arvuti, Arvutid, 6, 0) -> 870 | G8: =Hind * Arv -> 1740
B9: 2013-01-02 | C9: Valga | D9: Balrog | E9: 1 | F9: =VLOOKUP(Arvuti, Arvutid, 6, 0) -> 419 | G9: 419
B10: 2013-01-03 | C10: Võru | D10: Gandalf | E10: 2 | F10: 849 | G10: 1698
B11: 2013-01-03 | C11: Tallinn | D11: Balrog | E11: 3 | F11: 419 | G11: 1257
B12: 2013-01-03 | C12: Tallinn | D12: Aragorn | E12: 2 | F12: 499 | G12: 998
B13: 2013-01-04 | C13: Tartu | D13: Balrog | E13: 5 | F13: 419 | G13: 2095
B14: 2013-01-04 | C14: Tallinn | D14: Eldar | E14: 3 | F14: 465 | G14: 1395
B15: 2013-01-07 | C15: Valga | D15: Balrog | E15: 6 | F15: 419 | G15: 2514
B16: 2013-01-07 | C16: Pärnu | D16: Eldar | E16: 3 | F16: 465 | G16: 1395
B17: 2013-01-07 | C17: Valga | D17: Frodo | E17: 1 | F17: 870 | G17: 870
B18: 2013-01-07 | C18: Tallinn | D18: Faram | E18: 1 | F18: 599 | G18: 599
B19: 2013-01-09 | C19: Tallinn | D19: Grimbold | E19: 6 | F19: 1149 | G19: 6894
B20: 2013-01-10 | C20: Pärnu | D20: Rohan | E20: 4 | F20: 340 | G20: 1360
B21: 2013-01-10 | C21: Pärnu | D21: Elend | E21: 1 | F21: 920 | G21: 920
B22: 2013-01-10 | C22: Tartu | D22: Sauron | E22: 2 | F22: 339 | G22: 678
B23: 2013-01-11 | C23: Tartu | D23: Balrog | E23: 2 | F23: 419 | G23: 838
B24: 2013-01-11 | C24: Tallinn | D24: Marvin | E24: 1 | F24: 370 | G24: 370
B25: 2013-01-11 | C25: Valga | D25: Aragorn | E25: 1 | F25: 499 | G25: 499
B26: 2013-01-14 | C26: Tartu | D26: Frodo | E26: 4 | F26: 870 | G26: 3480
B27: 2013-01-14 | C27: Pärnu | D27: Gandalf | E27: 3 | F27: 849 | G27: 2547
B28: 2013-01-14 | C28: Valga | D28: Kalvar | E28: 2 | F28: 699 | G28: 1398
B29: 2013-01-16 | C29: Tallinn | D29: Arven | E29: 5 | F29: 369 | G29: 1845
B30: 2013-01-17 | C30: Tallinn | D30: Kalvar | E30: 7 | F30: 699 | G30: 4893
B31: 2013-01-17 | C31: Tartu | D31: Aragorn | E31: 3 | F31: 499 | G31: 1497
B32: 2013-01-18 | C32: Tallinn | D32: Aragorn | E32: 1 | F32: 499 | G32: 499
B33: 2013-01-18 | C33: Pärnu | D33: Eldar | E33: 1 | F33: 465 | G33: 465
B34: 2013-01-19 | C34: Võru | D34: Elend | E34: 5 | F34: 920 | G34: 4600
B35: 2013-01-19 | C35: Tallinn | D35: Faram | E35: 3 | F35: 599 | G35: 1797
B36: 2013-01-19 | C36: Tartu | D36: Kalvar | E36: 1 | F36: 699 | G36: 699
B37: 2013-01-20 | C37: Tallinn | D37: Elend | E37: 2 | F37: 920 | G37: 1840
B38: 2013-01-20 | C38: Võru | D38: Sauron | E38: 3 | F38: 339 | G38: 1017
B39: 2013-01-21 | C39: Pärnu | D39: Arven | E39: 1 | F39: 369 | G39: 369
B40: 2013-01-25 | C40: Võru | D40: Sauron | E40: 1 | F40: 339 | G40: 339
B41: 2013-01-26 | C41: Pärnu | D41: Gandalf | E41: 2 | F41: 849 | G41: 1698

Sheet Töötajad
L2: Amet | M2: Sugu | O2: Sugu | P2: Vanus | Q2: Palk
B3: Töötajad | L3: juhataja | M3: naine | O3: mees | P3: >50 | Q3: <1000
B4: sortimine | C4: autofilter | D4: arend. filter | E4: vahekokkuv. | F4: risttabel
O5: Osakond | P5: Sugu
B6: Isikukood | C6: Eesnimi | D6: Perenimi | E6: Sugu | F6: Sünniaeg | G6: Vanus | H6: Osakond | I6: Amet | J6: Palk | L6: Amet | M6: Arv | O6: ladu | P6: naine
B7: 37303030624 | C7: Aarne | D7: Mikson | E7: mees | F7: =DATE(MID(B7,2,2),MID(B7,4,2),MID(B7,6,2)) -> 1973-03-03 | G7: =INT((TODAY()-F7)/365.25) -> 46 | H7: Ost | I7: juhataja | J7: 1970 | L7: tööline | M7: =COUNTIF(Amet,L7) -> 32 | O7: ost | P7: naine
B8: 46605150941 | C8: Maarja | D8: Ambros | E8: naine | F8: =DATE(MID(B8,2,2),MID(B8,4,2),MID(B8,6,2)) -> 1966-05-15 | G8: =INT((TODAY()-F8)/365.25) -> 53 | H8: Ost | I8: sekretär | J8: 950 | L8: sekretär | M8: 13
B9: 45903030319 | C9: Valve | D9: Mäesalu | E9: naine | F9: =DATE(MID(B9,2,2),MID(B9,4,2),MID(B9,6,2)) -> 1959-03-03 | G9: =INT((TODAY()-F9)/365.25) -> 60 | H9: Ost | I9: sekretär | J9: 750 | L9: autojuht | M9: 11 | O9: Amet | P9: Osakond
B10: 46809210954 | C10: Aigi | D10: Härm | E10: naine | F10: =DATE(MID(B10,2,2),MID(B10,4,2),MID(B10,6,2)) -> 1968-09-21 | G10: =INT((TODAY()-F10)/365.25) -> 51 | H10: Ost | I10: sekretär | J10: 720 | L10: juhataja | M10: 6 | O10: juhataja | P10: müük
B11: 44311130888 | C11: Sirje | D11: Härm | E11: naine | F11: =DATE(MID(B11,2,2),MID(B11,4,2),MID(B11,6,2)) -> 1943-11-13 | G11: =INT((TODAY()-F11)/365.25) -> 75 | H11: Ost | I11: sekretär | J11: 570 | L11: raamatupidaja | M11: 5 | O11: juhataja | P11: ost
B12: 47302150417 | C12: Mare | D12: Eesmaa | E12: naine | F12: =DATE(MID(B12,2,2),MID(B12,4,2),MID(B12,6,2)) -> 1973-02-15 | G12: =INT((TODAY()-F12)/365.25) -> 46 | H12: Majandus | I12: juhataja | J12: 1690 | L12: dispetser | M12: 4 | O12: sekretär | P12: ost
B13: 44203130136 | C13: Mirja | D13: Bergmann | E13: naine | F13: =DATE(MID(B13,2,2),MID(B13,4,2),MID(B13,6,2)) -> 1942-03-13 | G13: =INT((TODAY()-F13)/365.25) -> 77 | H13: Majandus | I13: koristaja | J13: 1270 | L13: diiler | M13: 4
B14: 45902200391 | C14: Evelin | D14: Põld | E14: naine | F14: =DATE(MID(B14,2,2),MID(B14,4,2),MID(B14,6,2)) -> 1959-02-20 | G14: =INT((TODAY()-F14)/365.25) -> 60 | H14: Majandus | I14: sekretär | J14: 640 | L14: treial | M14: 4 | O14: Amet | P14: Vanus | Q14: Palk
B15: 48305030944 | C15: Laine | D15: Eek | E15: naine | F15: =DATE(MID(B15,2,2),MID(B15,4,2),MID(B15,6,2)) -> 1983-05-03 | G15: =INT((TODAY()-F15)/365.25) -> 36 | H15: Majandus | I15: sekretär | J15: 510
B16: 48105090295 | C16: Annika | D16: Paju | E16: naine | F16: =DATE(MID(B16,2,2),MID(B16,4,2),MID(B16,6,2)) -> 1981-05-09 | G16: =INT((TODAY()-F16)/365.25) -> 38 | H16: Majandus | I16: sekretär | J16: 510 | L16: koristaja | M16: 3 | O16: müügijuht | P16: >=50 | Q16: >=1200
B17: 44012150956 | C17: Aasa | D17: Randla | E17: naine | F17: =DATE(MID(B17,2,2),MID(B17,4,2),MID(B17,6,2)) -> 1940-12-15 | G17: =INT((TODAY()-F17)/365.25) -> 78 | H17: Majandus | I17: koristaja | J17: 480 | L17: müügijuht | M17: 3 | O17: jurist | P17: >=50 | Q17: >=1200
B18: 44601210234 | C18: Tiina | D18: Toomsalu | E18: naine | F18: =DATE(MID(B18,2,2),MID(B18,4,2),MID(B18,6,2)) -> 1946-01-21 | G18: =INT((TODAY()-F18)/365.25) -> 73 | H18: Majandus | I18: koristaja | J18: 430 | L18: meister | M18: 3
B19: 34112180084 | C19: Anton | D19: Meister | E19: mees | F19: =DATE(MID(B19,2,2),MID(B19,4,2),MID(B19,6,2)) -> 1941-12-18 | G19: =INT((TODAY()-F19)/365.25) -> 77 | H19: Ladu | I19: juhataja | J19: 1510 | L19: kompekteerija | M19: 2
B20: 45710100356 | C20: Airi | D20: Põld | E20: naine | F20: =DATE(MID(B20,2,2),MID(B20,4,2),MID(B20,6,2)) -> 1957-10-10 | G20: =INT((TODAY()-F20)/365.25) -> 62 | H20: Ladu | I20: kompekteerija | J20: 770 | L20: referent | M20: 1
B21: 46709190988 | C21: Selma | D21: Parre | E21: naine | F21: =DATE(MID(B21,2,2),MID(B21,4,2),MID(B21,6,2)) -> 1967-09-19 | G21: =INT((TODAY()-F21)/365.25) -> 52 | H21: Ladu | I21: tööline | J21: 710 | L21: valvur | M21: 1
B22: 34708140585 | C22: Erki | D22: Arsenov | E22: mees | F22: =DATE(MID(B22,2,2),MID(B22,4,2),MID(B22,6,2)) -> 1947-08-14 | G22: =INT((TODAY()-F22)/365.25) -> 72 | H22: Ladu | I22: kompekteerija | J22: 690
B23: 34810190405 | C23: Karl | D23: Salu | E23: mees | F23: =DATE(MID(B23,2,2),MID(B23,4,2),MID(B23,6,2)) -> 1948-10-19 | G23: =INT((TODAY()-F23)/365.25) -> 71 | H23: Ladu | I23: dispetser | J23: 660 | L23: Märts | N23: L pere | P23: Teisipäev
B24: 34506190557 | C24: Reijo | D24: Meigas | E24: mees | F24: =DATE(MID(B24,2,2),MID(B24,4,2),MID(B24,6,2)) -> 1945-06-19 | G24: =INT((TODAY()-F24)/365.25) -> 74 | H24: Ladu | I24: tööline | J24: 640 | L24: =MONTH(F7)=3 -> TRUE | N24: =LEFT(D7,1)="L" -> FALSE | P24: =WEEKDAY(F7,2)=2 -> FALSE
B25: 38301080820 | C25: Meelis | D25: Kalju | E25: mees | F25: =DATE(MID(B25,2,2),MID(B25,4,2),MID(B25,6,2)) -> 1983-01-08 | G25: =INT((TODAY()-F25)/365.25) -> 36 | H25: Ladu | I25: tööline | J25: 510
B26: 34404190222 | C26: Kaivo | D26: Berk | E26: mees | F26: =DATE(MID(B26,2,2),MID(B26,4,2),MID(B26,6,2)) -> 1944-04-19 | G26: =INT((TODAY()-F26)/365.25) -> 75 | H26: Ladu | I26: tööline | J26: 510 | L26: Osakond
B27: 48208230166 | C27: Tiina | D27: Markus | E27: naine | F27: =DATE(MID(B27,2,2),MID(B27,4,2),MID(B27,6,2)) -> 1982-08-23 | G27: =INT((TODAY()-F27)/365.25) -> 37 | H27: Ladu | I27: tööline | J27: 500 | L27: Ost
B28: 36008130050 | C28: Einar | D28: Laanepõld | E28: mees | F28: =DATE(MID(B28,2,2),MID(B28,4,2),MID(B28,6,2)) -> 1960-08-13 | G28: =INT((TODAY()-F28)/365.25) -> 59 | H28: Ladu | I28: tööline | J28: 500 | L28: Majandus
B29: 46908050804 | C29: Malle | D29: Kivioja | E29: naine | F29: =DATE(MID(B29,2,2),MID(B29,4,2),MID(B29,6,2)) -> 1969-08-05 | G29: =INT((TODAY()-F29)/365.25) -> 50 | H29: Finants | I29: juhataja | J29: 2430 | L29: Ladu
B30: 47010010868 | C30: Faina | D30: Lepp | E30: naine | F30: =DATE(MID(B30,2,2),MID(B30,4,2),MID(B30,6,2)) -> 1970-10-01 | G30: =INT((TODAY()-F30)/365.25) -> 49 | H30: Finants | I30: jurist | J30: 1570 | L30: Finants
B31: 45604030496 | C31: Malle | D31: Ligi | E31: naine | F31: =DATE(MID(B31,2,2),MID(B31,4,2),MID(B31,6,2)) -> 1956-04-03 | G31: =INT((TODAY()-F31)/365.25) -> 63 | H31: Finants | I31: jurist | J31: 1510 | L31: Transport
B32: 37803090504 | C32: Jaan | D32: Laubre | E32: mees | F32: =DATE(MID(B32,2,2),MID(B32,4,2),MID(B32,6,2)) -> 1978-03-09 | G32: =INT((TODAY()-F32)/365.25) -> 41 | H32: Finants | I32: raamatupidaja | J32: 850 | L32: Müük
B33: 45711080030 | C33: Kristel | D33: Astok | E33: naine | F33: =DATE(MID(B33,2,2),MID(B33,4,2),MID(B33,6,2)) -> 1957-11-08 | G33: =INT((TODAY()-F33)/365.25) -> 61 | H33: Finants | I33: raamatupidaja | J33: 850 | L33: Tootmine
B34: 44607080463 | C34: Evi | D34: Sarapik | E34: naine | F34: =DATE(MID(B34,2,2),MID(B34,4,2),MID(B34,6,2)) -> 1946-07-08 | G34: =INT((TODAY()-F34)/365.25) -> 73 | H34: Finants | I34: raamatupidaja | J34: 850
B35: 47311270496 | C35: Vilma | D35: Eesmaa | E35: naine | F35: =DATE(MID(B35,2,2),MID(B35,4,2),MID(B35,6,2)) -> 1973-11-27 | G35: =INT((TODAY()-F35)/365.25) -> 45 | H35: Finants | I35: raamatupidaja | J35: 770
B36: 47102200902 | C36: Ene | D36: Burmeister | E36: naine | F36: =DATE(MID(B36,2,2),MID(B36,4,2),MID(B36,6,2)) -> 1971-02-20 | G36: =INT((TODAY()-F36)/365.25) -> 48 | H36: Finants | I36: raamatupidaja | J36: 710
B37: 46404170054 | C37: Katy | D37: Veesimaa | E37: naine | F37: =DATE(MID(B37,2,2),MID(B37,4,2),MID(B37,6,2)) -> 1964-04-17 | G37: =INT((TODAY()-F37)/365.25) -> 55 | H37: Finants | I37: referent | J37: 650
B38: 37111200348 | C38: Margus | D38: Roosimägi | E38: mees | F38: =DATE(MID(B38,2,2),MID(B38,4,2),MID(B38,6,2)) -> 1971-11-20 | G38: =INT((TODAY()-F38)/365.25) -> 47 | H38: Transport | I38: autojuht | J38: 910
B39: 36802240722 | C39: Ahto | D39: Danilov | E39: mees | F39: =DATE(MID(B39,2,2),MID(B39,4,2),MID(B39,6,2)) -> 1968-02-24 | G39: =INT((TODAY()-F39)/365.25) -> 51 | H39: Transport | I39: autojuht | J39: 910
B40: 35809050610 | C40: Aadu | D40: Malva | E40: mees | F40: =DATE(MID(B40,2,2),MID(B40,4,2),MID(B40,6,2)) -> 1958-09-05 | G40: =INT((TODAY()-F40)/365.25) -> 61 | H40: Transport | I40: autojuht | J40: 790
B41: 38302070214 | C41: Priit | D41: Burmeister | E41: mees | F41: =DATE(MID(B41,2,2),MID(B41,4,2),MID(B41,6,2)) -> 1983-02-07 | G41: =INT((TODAY()-F41)/365.25) -> 36 | H41: Transport | I41: autojuht | J41: 770
B42: 37708220891 | C42: Ando | D42: Nõmmik | E42: mees | F42: =DATE(MID(B42,2,2),MID(B42,4,2),MID(B42,6,2)) -> 1977-08-22 | G42: =INT((TODAY()-F42)/365.25) -> 42 | H42: Transport | I42: autojuht | J42: 770
B43: 34906210936 | C43: Jaan | D43: Kaasik | E43: mees | F43: =DATE(MID(B43,2,2),MID(B43,4,2),MID(B43,6,2)) -> 1949-06-21 | G43: =INT((TODAY()-F43)/365.25) -> 70 | H43: Transport | I43: autojuht | J43: 730
B44: 47111150090 | C44: Tiina | D44: Rajamäe | E44: naine | F44: =DATE(MID(B44,2,2),MID(B44,4,2),MID(B44,6,2)) -> 1971-11-15 | G44: =INT((TODAY()-F44)/365.25) -> 47 | H44: Transport | I44: dispetser | J44: 710
B45: 36907260696 | C45: Hanno | D45: Pedak | E45: mees | F45: =DATE(MID(B45,2,2),MID(B45,4,2),MID(B45,6,2)) -> 1969-07-26 | G45: =INT((TODAY()-F45)/365.25) -> 50 | H45: Transport | I45: autojuht | J45: 710
B46: 36512210549 | C46: Paul | D46: Naaber | E46: mees | F46: =DATE(MID(B46,2,2),MID(B46,4,2),MID(B46,6,2)) -> 1965-12-21 | G46: =INT((TODAY()-F46)/365.25) -> 53 | H46: Transport | I46: autojuht | J46: 700
B47: 35001130124 | C47: Aarne | D47: Oks | E47: mees | F47: =DATE(MID(B47,2,2),MID(B47,4,2),MID(B47,6,2)) -> 1950-01-13 | G47: =INT((TODAY()-F47)/365.25) -> 69 | H47: Transport | I47: autojuht | J47: 700
B48: 37509120658 | C48: Boris | D48: Küünemäe | E48: mees | F48: =DATE(MID(B48,2,2),MID(B48,4,2),MID(B48,6,2)) -> 1975-09-12 | G48: =INT((TODAY()-F48)/365.25) -> 44 | H48: Transport | I48: autojuht | J48: 650
B49: 47110060467 | C49: Elvi | D49: Berk | E49: naine | F49: =DATE(MID(B49,2,2),MID(B49,4,2),MID(B49,6,2)) -> 1971-10-06 | G49: =INT((TODAY()-F49)/365.25) -> 48 | H49: Transport | I49: dispetser | J49: 640
B50: 45809140289 | C50: Kristiina | D50: Oks | E50: naine | F50: =DATE(MID(B50,2,2),MID(B50,4,2),MID(B50,6,2)) -> 1958-09-14 | G50: =INT((TODAY()-F50)/365.25) -> 61 | H50: Transport | I50: dispetser | J50: 630
B51: 35408240148 | C51: Arnold | D51: Merilaid | E51: mees | F51: =DATE(MID(B51,2,2),MID(B51,4,2),MID(B51,6,2)) -> 1954-08-24 | G51: =INT((TODAY()-F51)/365.25) -> 65 | H51: Transport | I51: autojuht | J51: 630
B52: 34204170615 | C52: Aadu | D52: Pulk | E52: mees | F52: =DATE(MID(B52,2,2),MID(B52,4,2),MID(B52,6,2)) -> 1942-04-17 | G52: =INT((TODAY()-F52)/365.25) -> 77 | H52: Transport | I52: valvur | J52: 430
B53: 37006180544 | C53: Erno | D53: Salumets | E53: mees | F53: =DATE(MID(B53,2,2),MID(B53,4,2),MID(B53,6,2)) -> 1970-06-18 | G53: =INT((TODAY()-F53)/365.25) -> 49 | H53: Müük | I53: juhataja | J53: 2430
B54: 36709040675 | C54: Tarmo | D54: Müller | E54: mees | F54: =DATE(MID(B54,2,2),MID(B54,4,2),MID(B54,6,2)) -> 1967-09-04 | G54: =INT((TODAY()-F54)/365.25) -> 52 | H54: Müük | I54: müügijuht | J54: 1390
B55: 47110070151 | C55: Erika | D55: Bachmann | E55: naine | F55: =DATE(MID(B55,2,2),MID(B55,4,2),MID(B55,6,2)) -> 1971-10-07 | G55: =INT((TODAY()-F55)/365.25) -> 48 | H55: Müük | I55: müügijuht | J55: 900
B56: 47110240441 | C56: Ene | D56: Elmik | E56: naine | F56: =DATE(MID(B56,2,2),MID(B56,4,2),MID(B56,6,2)) -> 1971-10-24 | G56: =INT((TODAY()-F56)/365.25) -> 48 | H56: Müük | I56: müügijuht | J56: 850
B57: 38303010526 | C57: Jaan | D57: Noormets | E57: mees | F57: =DATE(MID(B57,2,2),MID(B57,4,2),MID(B57,6,2)) -> 1983-03-01 | G57: =INT((TODAY()-F57)/365.25) -> 36 | H57: Müük | I57: diiler | J57: 770
B58: 37906080465 | C58: Kristjan | D58: Mägi | E58: mees | F58: =DATE(MID(B58,2,2),MID(B58,4,2),MID(B58,6,2)) -> 1979-06-08 | G58: =INT((TODAY()-F58)/365.25) -> 40 | H58: Müük | I58: diiler | J58: 730
B59: 38104220473 | C59: Aare | D59: Raudsepp | E59: mees | F59: =DATE(MID(B59,2,2),MID(B59,4,2),MID(B59,6,2)) -> 1981-04-22 | G59: =INT((TODAY()-F59)/365.25) -> 38 | H59: Müük | I59: diiler | J59: 700
B60: 48801180808 | C60: Erika | D60: Kasemets | E60: naine | F60: =DATE(MID(B60,2,2),MID(B60,4,2),MID(B60,6,2)) -> 1988-01-18 | G60: =INT((TODAY()-F60)/365.25) -> 31 | H60: Müük | I60: sekretär | J60: 650
B61: 38206070961 | C61: Reijo | D61: Okspuu | E61: mees | F61: =DATE(MID(B61,2,2),MID(B61,4,2),MID(B61,6,2)) -> 1982-06-07 | G61: =INT((TODAY()-F61)/365.25) -> 37 | H61: Müük | I61: diiler | J61: 650
B62: 47605040659 | C62: Hilja | D62: Raid | E62: naine | F62: =DATE(MID(B62,2,2),MID(B62,4,2),MID(B62,6,2)) -> 1976-05-04 | G62: =INT((TODAY()-F62)/365.25) -> 43 | H62: Müük | I62: sekretär | J62: 640
B63: 48210210529 | C63: Faina | D63: Kukk | E63: naine | F63: =DATE(MID(B63,2,2),MID(B63,4,2),MID(B63,6,2)) -> 1982-10-21 | G63: =INT((TODAY()-F63)/365.25) -> 37 | H63: Müük | I63: sekretär | J63: 580
B64: 48704250911 | C64: Helen | D64: Aigro | E64: naine | F64: =DATE(MID(B64,2,2),MID(B64,4,2),MID(B64,6,2)) -> 1987-04-25 | G64: =INT((TODAY()-F64)/365.25) -> 32 | H64: Müük | I64: sekretär | J64: 570
B65: 46809170171 | C65: Jana | D65: Kaal | E65: naine | F65: =DATE(MID(B65,2,2),MID(B65,4,2),MID(B65,6,2)) -> 1968-09-17 | G65: =INT((TODAY()-F65)/365.25) -> 51 | H65: Müük | I65: sekretär | J65: 570
B66: 45209010485 | C66: Juulia | D66: Tubin | E66: naine | F66: =DATE(MID(B66,2,2),MID(B66,4,2),MID(B66,6,2)) -> 1952-09-01 | G66: =INT((TODAY()-F66)/365.25) -> 67 | H66: Müük | I66: sekretär | J66: 570
B67: 34107110230 | C67: Hendrik | D67: Kanter | E67: mees | F67: =DATE(MID(B67,2,2),MID(B67,4,2),MID(B67,6,2)) -> 1941-07-11 | G67: =INT((TODAY()-F67)/365.25) -> 78 | H67: Tootmine | I67: juhataja | J67: 2180
B68: 36405130719 | C68: Erki | D68: Ainsaar | E68: mees | F68: =DATE(MID(B68,2,2),MID(B68,4,2),MID(B68,6,2)) -> 1964-05-13 | G68: =INT((TODAY()-F68)/365.25) -> 55 | H68: Tootmine | I68: lukksepp | J68: 1200
B69: 44406270104 | C69: Sirje | D69: Kreen | E69: naine | F69: =DATE(MID(B69,2,2),MID(B69,4,2),MID(B69,6,2)) -> 1944-06-27 | G69: =INT((TODAY()-F69)/365.25) -> 75 | H69: Tootmine | I69: tööline | J69: 975
B70: 34408020335 | C70: Aare | D70: Marmor | E70: mees | F70: =DATE(MID(B70,2,2),MID(B70,4,2),MID(B70,6,2)) -> 1944-08-02 | G70: =INT((TODAY()-F70)/365.25) -> 75 | H70: Tootmine | I70: meister | J70: 950
B71: 36203030988 | C71: Kaivo | D71: Mets | E71: mees | F71: =DATE(MID(B71,2,2),MID(B71,4,2),MID(B71,6,2)) -> 1962-03-03 | G71: =INT((TODAY()-F71)/365.25) -> 57 | H71: Tootmine | I71: meister | J71: 920
B72: 34110060017 | C72: Marko | D72: Erikson | E72: mees | F72: =DATE(MID(B72,2,2),MID(B72,4,2),MID(B72,6,2)) -> 1941-10-06 | G72: =INT((TODAY()-F72)/365.25) -> 78 | H72: Tootmine | I72: meister | J72: 920
B73: 35901050084 | C73: Ahti | D73: Tubin | E73: mees | F73: =DATE(MID(B73,2,2),MID(B73,4,2),MID(B73,6,2)) -> 1959-01-05 | G73: =INT((TODAY()-F73)/365.25) -> 60 | H73: Tootmine | I73: treial | J73: 900
B74: 38502110722 | C74: Karl | D74: Agur | E74: mees | F74: =DATE(MID(B74,2,2),MID(B74,4,2),MID(B74,6,2)) -> 1985-02-11 | G74: =INT((TODAY()-F74)/365.25) -> 34 | H74: Tootmine | I74: tööline | J74: 870
B75: 37612170754 | C75: Eevald | D75: Parts | E75: mees | F75: =DATE(MID(B75,2,2),MID(B75,4,2),MID(B75,6,2)) -> 1976-12-17 | G75: =INT((TODAY()-F75)/365.25) -> 42 | H75: Tootmine | I75: lukksepp | J75: 860
B76: 37002030149 | C76: Kristjan | D76: Jürimäe | E76: mees | F76: =DATE(MID(B76,2,2),MID(B76,4,2),MID(B76,6,2)) -> 1970-02-03 | G76: =INT((TODAY()-F76)/365.25) -> 49 | H76: Tootmine | I76: lukksepp | J76: 850
B77: 37005020007 | C77: Erki | D77: Lepiksoo | E77: mees | F77: =DATE(MID(B77,2,2),MID(B77,4,2),MID(B77,6,2)) -> 1970-05-02 | G77: =INT((TODAY()-F77)/365.25) -> 49 | H77: Tootmine | I77: treial | J77: 790
B78: 37003260243 | C78: Reijo | D78: Muld | E78: mees | F78: =DATE(MID(B78,2,2),MID(B78,4,2),MID(B78,6,2)) -> 1970-03-26 | G78: =INT((TODAY()-F78)/365.25) -> 49 | H78: Tootmine | I78: tööline | J78: 790
B79: 37105220288 | C79: Kustav | D79: Salu | E79: mees | F79: =DATE(MID(B79,2,2),MID(B79,4,2),MID(B79,6,2)) -> 1971-05-22 | G79: =INT((TODAY()-F79)/365.25) -> 48 | H79: Tootmine | I79: tööline | J79: 770
B80: 36009040214 | C80: Andrus | D80: Koort | E80: mees | F80: =DATE(MID(B80,2,2),MID(B80,4,2),MID(B80,6,2)) -> 1960-09-04 | G80: =INT((TODAY()-F80)/365.25) -> 59 | H80: Tootmine | I80: treial | J80: 770
B81: 35104120460 | C81: Reijo | D81: Müürsepp | E81: mees | F81: =DATE(MID(B81,2,2),MID(B81,4,2),MID(B81,6,2)) -> 1951-04-12 | G81: =INT((TODAY()-F81)/365.25) -> 68 | H81: Tootmine | I81: lukksepp | J81: 770
B82: 34811280456 | C82: Argo | D82: Salu | E82: mees | F82: =DATE(MID(B82,2,2),MID(B82,4,2),MID(B82,6,2)) -> 1948-11-28 | G82: =INT((TODAY()-F82)/365.25) -> 70 | H82: Tootmine | I82: tööline | J82: 770
B83: 38005180669 | C83: Hanno | D83: Pajusaar | E83: mees | F83: =DATE(MID(B83,2,2),MID(B83,4,2),MID(B83,6,2)) -> 1980-05-18 | G83: =INT((TODAY()-F83)/365.25) -> 39 | H83: Tootmine | I83: tööline | J83: 760
B84: 37308230939 | C84: Madis | D84: Paulus | E84: mees | F84: =DATE(MID(B84,2,2),MID(B84,4,2),MID(B84,6,2)) -> 1973-08-23 | G84: =INT((TODAY()-F84)/365.25) -> 46 | H84: Tootmine | I84: tööline | J84: 750
B85: 36110090988 | C85: Aadu | D85: Elson | E85: mees | F85: =DATE(MID(B85,2,2),MID(B85,4,2),MID(B85,6,2)) -> 1961-10-09 | G85: =INT((TODAY()-F85)/365.25) -> 58 | H85: Tootmine | I85: tööline | J85: 750
B86: 34309100049 | C86: Madis | D86: Maasalu | E86: mees | F86: =DATE(MID(B86,2,2),MID(B86,4,2),MID(B86,6,2)) -> 1943-09-10 | G86: =INT((TODAY()-F86)/365.25) -> 76 | H86: Tootmine | I86: tööline | J86: 720
B87: 38008200347 | C87: Arnold | D87: Norak | E87: mees | F87: =DATE(MID(B87,2,2),MID(B87,4,2),MID(B87,6,2)) -> 1980-08-20 | G87: =INT((TODAY()-F87)/365.25) -> 39 | H87: Tootmine | I87: tööline | J87: 710
B88: 35009030894 | C88: Margus | D88: Maasalu | E88: mees | F88: =DATE(MID(B88,2,2),MID(B88,4,2),MID(B88,6,2)) -> 1950-09-03 | G88: =INT((TODAY()-F88)/365.25) -> 69 | H88: Tootmine | I88: tööline | J88: 710
B89: 47508150058 | C89: Irma | D89: Piirsalu | E89: naine | F89: =DATE(MID(B89,2,2),MID(B89,4,2),MID(B89,6,2)) -> 1975-08-15 | G89: =INT((TODAY()-F89)/365.25) -> 44 | H89: Tootmine | I89: tööline | J89: 700
B90: 35404050446 | C90: Reijo | D90: Bauman | E90: mees | F90: =DATE(MID(B90,2,2),MID(B90,4,2),MID(B90,6,2)) -> 1954-04-05 | G90: =INT((TODAY()-F90)/365.25) -> 65 | H90: Tootmine | I90: tööline | J90: 700
B91: 33907250511 | C91: Riho | D91: Kuusk | E91: mees | F91: =DATE(MID(B91,2,2),MID(B91,4,2),MID(B91,6,2)) -> 1939-07-25 | G91: =INT((TODAY()-F91)/365.25) -> 80 | H91: Tootmine | I91: tööline | J91: 690
B92: 34103030178 | C92: Einar | D92: Ehala | E92: mees | F92: =DATE(MID(B92,2,2),MID(B92,4,2),MID(B92,6,2)) -> 1941-03-03 | G92: =INT((TODAY()-F92)/365.25) -> 78 | H92: Tootmine | I92: treial | J92: 680
B93: 38201060031 | C93: Raivo | D93: Lokk | E93: mees | F93: =DATE(MID(B93,2,2),MID(B93,4,2),MID(B93,6,2)) -> 1982-01-06 | G93: =INT((TODAY()-F93)/365.25) -> 37 | H93: Tootmine | I93: tööline | J93: 650
B94: 46307080393 | C94: Malle | D94: Põldmaa | E94: naine | F94: =DATE(MID(B94,2,2),MID(B94,4,2),MID(B94,6,2)) -> 1963-07-08 | G94: =INT((TODAY()-F94)/365.25) -> 56 | H94: Tootmine | I94: tööline | J94: 650
B95: 44111240925 | C95: Leida | D95: Jaanus | E95: naine | F95: =DATE(MID(B95,2,2),MID(B95,4,2),MID(B95,6,2)) -> 1941-11-24 | G95: =INT((TODAY()-F95)/365.25) -> 77 | H95: Tootmine | I95: tööline | J95: 640
B96: 36406070555 | C96: Aarne | D96: Norak | E96: mees | F96: =DATE(MID(B96,2,2),MID(B96,4,2),MID(B96,6,2)) -> 1964-06-07 | G96: =INT((TODAY()-F96)/365.25) -> 55 | H96: Tootmine | I96: tööline | J96: 620
B97: 36504060863 | C97: Arvi | D97: Väljas | E97: mees | F97: =DATE(MID(B97,2,2),MID(B97,4,2),MID(B97,6,2)) -> 1965-04-06 | G97: =INT((TODAY()-F97)/365.25) -> 54 | H97: Tootmine | I97: tööline | J97: 580
B98: 35312110930 | C98: Kaspar | D98: Veesimaa | E98: mees | F98: =DATE(MID(B98,2,2),MID(B98,4,2),MID(B98,6,2)) -> 1953-12-11 | G98: =INT((TODAY()-F98)/365.25) -> 65 | H98: Tootmine | I98: tööline | J98: 580
B99: 33904050217 | C99: Olav | D99: Berk | E99: mees | F99: =DATE(MID(B99,2,2),MID(B99,4,2),MID(B99,6,2)) -> 1939-04-05 | G99: =INT((TODAY()-F99)/365.25) -> 80 | H99: Tootmine | I99: tööline | J99: 580
B100: 38211130833 | C100: Meelis | D100: Petrov | E100: mees | F100: =DATE(MID(B100,2,2),MID(B100,4,2),MID(B100,6,2)) -> 1982-11-13 | G100: =INT((TODAY()-F100)/365.25) -> 36 | H100: Tootmine | I100: tööline | J100: 570
B101: 38205190379 | C101: Aadu | D101: Heinlo | E101: mees | F101: =DATE(MID(B101,2,2),MID(B101,4,2),MID(B101,6,2)) -> 1982-05-19 | G101: =INT((TODAY()-F101)/365.25) -> 37 | H101: Tootmine | I101: lukksepp | J101: 570
B102: 48109130038 | C102: Kersti | D102: Miller | E102: naine | F102: =DATE(MID(B102,2,2),MID(B102,4,2),MID(B102,6,2)) -> 1981-09-13 | G102: =INT((TODAY()-F102)/365.25) -> 38 | H102: Tootmine | I102: tööline | J102: 570
B103: 48007150516 | C103: Erna | D103: Eek | E103: naine | F103: =DATE(MID(B103,2,2),MID(B103,4,2),MID(B103,6,2)) -> 1980-07-15 | G103: =INT((TODAY()-F103)/365.25) -> 39 | H103: Tootmine | I103: tööline | J103: 550
B104: 35105180673 | C104: Eino | D104: Luige | E104: mees | F104: =DATE(MID(B104,2,2),MID(B104,4,2),MID(B104,6,2)) -> 1951-05-18 | G104: =INT((TODAY()-F104)/365.25) -> 68 | H104: Tootmine | I104: tööline | J104: 510
B105: 47005130963 | C105: Heli | D105: Lind | E105: naine | F105: =DATE(MID(B105,2,2),MID(B105,4,2),MID(B105,6,2)) -> 1970-05-13 | G105: =INT((TODAY()-F105)/365.25) -> 49 | H105: Tootmine | I105: tööline | J105: 500

Sheet Rist_koond
A2: Osakondade palkade summad
A4: Row Labels | B4: Sum of Palk
A5: Finants | B5: 10190
A6: Ladu | B6: 7000
A7: Majandus | B7: 5530
A8: Müük | B8: 12000
A9: Ost | B9: 4960
A10: Tootmine | B10: 30025
A11: Transport | B11: 10680
A12: Grand Total | B12: 80385
A15: Ametide ja sugude keskmine palk
A17: Average of Palk | B17: Column Labels
A18: Row Labels | B18: mees | C18: naine | D18: Grand Total
A19: autojuht | B19: 751.8181818 | D19: 751.8181818
A20: diiler | B20: 712.5 | D20: 712.5
A21: dispetser | B21: 660 | C21: 660 | D21: 660
A22: juhataja | B22: 2022.5 | C22: 2060 | D22: 2035
A23: jurist | C23: 1540 | D23: 1540
A24: kompekteerija | B24: 690 | C24: 770 | D24: 730
A25: koristaja | C25: 726.6666667 | D25: 726.6666667
A26: lukksepp | B26: 850 | D26: 850
A27: meister | B27: 930 | D27: 930
A28: müügijuht | B28: 1390 | C28: 875 | D28: 1046.666667
A29: raamatupidaja | B29: 850 | C29: 795 | D29: 806
A30: referent | C30: 650 | D30: 650
A31: sekretär | C31: 633.0769231 | D31: 633.0769231
A32: treial | B32: 785 | D32: 785
A33: tööline | B33: 662.6086957 | C33: 643.8888889 | D33: 657.34375
A34: valvur | B34: 430 | D34: 430
A35: Grand Total | B35: 824.5762712 | C35: 793.375 | D35: 811.969697
A38: Keskmine palk sugude ja vanusevahemike lõikes
A40: Osakond | B40: (All)
A42: Average of Palk | B42: Column Labels
A43: Row Labels | B43: mees | C43: naine | D43: Grand Total
A44: 25-34 | B44: 870 | C44: 610 | D44: 696.6666667
A45: 35-44 | B45: 701.3333333 | C45: 570 | D45: 655.6521739
A46: 45-54 | B46: 1042.307692 | C46: 980 | D46: 1010
A47: 55-64 | B47: 806.25 | C47: 806.25 | D47: 806.25
A48: 65-74 | B48: 674.1666667 | C48: 616.6666667 | D48: 662.6666667
A49: 75-84 | B49: 917 | C49: 787 | D49: 873.6666667
A50: Grand Total | B50: 824.5762712 | C50: 793.375 | D50: 811.969697

Sheet Filter_AT
A2: Kirjed, kus sugu on mees, vanus > 50 ja palk < 100.
A4: Isikukood | B4: Eesnimi | C4: Perenimi | D4: Sugu | E4: Sünniaeg | F4: Vanus | G4: Osakond | H4: Amet | I4: Palk
A5: 34810190405 | B5: Karl | C5: Salu | D5: mees | E5: 1948-10-19 | F5: 71 | G5: Ladu | H5: dispetser | I5: 660
A6: 34708140585 | B6: Erki | C6: Arsenov | D6: mees | E6: 1947-08-14 | F6: 72 | G6: Ladu | H6: kompekteerija | I6: 690
A7: 34506190557 | B7: Reijo | C7: Meigas | D7: mees | E7: 1945-06-19 | F7: 74 | G7: Ladu | H7: tööline | I7: 640
A8: 34404190222 | B8: Kaivo | C8: Berk | D8: mees | E8: 1944-04-19 | F8: 75 | G8: Ladu | H8: tööline | I8: 510
A9: 36008130050 | B9: Einar | C9: Laanepõld | D9: mees | E9: 1960-08-13 | F9: 59 | G9: Ladu | H9: tööline | I9: 500
A10: 35104120460 | B10: Reijo | C10: Müürsepp | D10: mees | E10: 1951-04-12 | F10: 68 | G10: Tootmine | H10: lukksepp | I10: 770
A11: 34408020335 | B11: Aare | C11: Marmor | D11: mees | E11: 1944-08-02 | F11: 75 | G11: Tootmine | H11: meister | I11: 950
A12: 36203030988 | B12: Kaivo | C12: Mets | D12: mees | E12: 1962-03-03 | F12: 57 | G12: Tootmine | H12: meister | I12: 920
A13: 34110060017 | B13: Marko | C13: Erikson | D13: mees | E13: 1941-10-06 | F13: 78 | G13: Tootmine | H13: meister | I13: 920
A14: 35901050084 | B14: Ahti | C14: Tubin | D14: mees | E14: 1959-01-05 | F14: 60 | G14: Tootmine | H14: treial | I14: 900
A15: 36009040214 | B15: Andrus | C15: Koort | D15: mees | E15: 1960-09-04 | F15: 59 | G15: Tootmine | H15: treial | I15: 770
A16: 34103030178 | B16: Einar | C16: Ehala | D16: mees | E16: 1941-03-03 | F16: 78 | G16: Tootmine | H16: treial | I16: 680
A17: 34811280456 | B17: Argo | C17: Salu | D17: mees | E17: 1948-11-28 | F17: 70 | G17: Tootmine | H17: tööline | I17: 770
A18: 36110090988 | B18: Aadu | C18: Elson | D18: mees | E18: 1961-10-09 | F18: 58 | G18: Tootmine | H18: tööline | I18: 750
A19: 34309100049 | B19: Madis | C19: Maasalu | D19: mees | E19: 1943-09-10 | F19: 76 | G19: Tootmine | H19: tööline | I19: 720
A20: 35009030894 | B20: Margus | C20: Maasalu | D20: mees | E20: 1950-09-03 | F20: 69 | G20: Tootmine | H20: tööline | I20: 710
A21: 35404050446 | B21: Reijo | C21: Bauman | D21: mees | E21: 1954-04-05 | F21: 65 | G21: Tootmine | H21: tööline | I21: 700
A22: 33907250511 | B22: Riho | C22: Kuusk | D22: mees | E22: 1939-07-25 | F22: 80 | G22: Tootmine | H22: tööline | I22: 690
A23: 36406070555 | B23: Aarne | C23: Norak | D23: mees | E23: 1964-06-07 | F23: 55 | G23: Tootmine | H23: tööline | I23: 620
A24: 36504060863 | B24: Arvi | C24: Väljas | D24: mees | E24: 1965-04-06 | F24: 54 | G24: Tootmine | H24: tööline | I24: 580
A25: 35312110930 | B25: Kaspar | C25: Veesimaa | D25: mees | E25: 1953-12-11 | F25: 65 | G25: Tootmine | H25: tööline | I25: 580
A26: 33904050217 | B26: Olav | C26: Berk | D26: mees | E26: 1939-04-05 | F26: 80 | G26: Tootmine | H26: tööline | I26: 580
A27: 35105180673 | B27: Eino | C27: Luige | D27: mees | E27: 1951-05-18 | F27: 68 | G27: Tootmine | H27: tööline | I27: 510
A28: 36802240722 | B28: Ahto | C28: Danilov | D28: mees | E28: 1968-02-24 | F28: 51 | G28: Transport | H28: autojuht | I28: 910
A29: 35809050610 | B29: Aadu | C29: Malva | D29: mees | E29: 1958-09-05 | F29: 61 | G29: Transport | H29: autojuht | I29: 790
A30: 34906210936 | B30: Jaan | C30: Kaasik | D30: mees | E30: 1949-06-21 | F30: 70 | G30: Transport | H30: autojuht | I30: 730
A31: 36512210549 | B31: Paul | C31: Naaber | D31: mees | E31: 1965-12-21 | F31: 53 | G31: Transport | H31: autojuht | I31: 700
A32: 35001130124 | B32: Aarne | C32: Oks | D32: mees | E32: 1950-01-13 | F32: 69 | G32: Transport | H32: autojuht | I32: 700
A33: 35408240148 | B33: Arnold | C33: Merilaid | D33: mees | E33: 1954-08-24 | F33: 65 | G33: Transport | H33: autojuht | I33: 630
A34: 34204170615 | B34: Aadu | C34: Pulk | D34: mees | E34: 1942-04-17 | F34: 77 | G34: Transport | H34: valvur | I34: 430
A37: Kirjed, kus osakond on ladu või ost ja sugu on naine
A39: Isikukood | B39: Eesnimi | C39: Perenimi | D39: Sugu | E39: Sünniaeg | F39: Vanus | G39: Osakond | H39: Amet | I39: Palk
A40: 45710100356 | B40: Airi | C40: Põld | D40: naine | E40: 1957-10-10 | F40: 62 | G40: Ladu | H40: kompekteerija | I40: 770
A41: 46709190988 | B41: Selma | C41: Parre | D41: naine | E41: 1967-09-19 | F41: 52 | G41: Ladu | H41: tööline | I41: 710
A42: 48208230166 | B42: Tiina | C42: Markus | D42: naine | E42: 1982-08-23 | F42: 37 | G42: Ladu | H42: tööline | I42: 500
A43: 46605150941 | B43: Maarja | C43: Ambros | D43: naine | E43: 1966-05-15 | F43: 53 | G43: Ost | H43: sekretär | I43: 950
A44: 45903030319 | B44: Valve | C44: Mäesalu | D44: naine | E44: 1959-03-03 | F44: 60 | G44: Ost | H44: sekretär | I44: 750
A45: 46809210954 | B45: Aigi | C45: Härm | D45: naine | E45: 1968-09-21 | F45: 51 | G45: Ost | H45: sekretär | I45: 720
A46: 44311130888 | B46: Sirje | C46: Härm | D46: naine | E46: 1943-11-13 | F46: 75 | G46: Ost | H46: sekretär | I46: 570
A49: Kirjed, kus osakond on müük või ost ja amet on juhataja või sekretär
A51: Isikukood | B51: Eesnimi | C51: Perenimi | D51: Sugu | E51: Sünniaeg | F51: Vanus | G51: Osakond | H51: Amet | I51: Palk
A52: 37006180544 | B52: Erno | C52: Salumets | D52: mees | E52: 1970-06-18 | F52: 49 | G52: Müük | H52: juhataja | I52: 2430
A53: 37303030624 | B53: Aarne | C53: Mikson | D53: mees | E53: 1973-03-03 | F53: 46 | G53: Ost | H53: juhataja | I53: 1970
A54: 46605150941 | B54: Maarja | C54: Ambros | D54: naine | E54: 1966-05-15 | F54: 53 | G54: Ost | H54: sekretär | I54: 950
A55: 45903030319 | B55: Valve | C55: Mäesalu | D55: naine | E55: 1959-03-03 | F55: 60 | G55: Ost | H55: sekretär | I55: 750
A56: 46809210954 | B56: Aigi | C56: Härm | D56: naine | E56: 1968-09-21 | F56: 51 | G56: Ost | H56: sekretär | I56: 720
A57: 48801180808 | B57: Erika | C57: Kasemets | D57: naine | E57: 1988-01-18 | F57: 31 | G57: Müük | H57: sekretär | I57: 650
A58: 47605040659 | B58: Hilja | C58: Raid | D58: naine | E58: 1976-05-04 | F58: 43 | G58: Müük | H58: sekretär | I58: 640
A59: 48210210529 | B59: Faina | C59: Kukk | D59: naine | E59: 1982-10-21 | F59: 37 | G59: Müük | H59: sekretär | I59: 580
A60: 48704250911 | B60: Helen | C60: Aigro | D60: naine | E60: 1987-04-25 | F60: 32 | G60: Müük | H60: sekretär | I60: 570
A61: 46809170171 | B61: Jana | C61: Kaal | D61: naine | E61: 1968-09-17 | F61: 51 | G61: Müük | H61: sekretär | I61: 570
A62: 45209010485 | B62: Juulia | C62: Tubin | D62: naine | E62: 1952-09-01 | F62: 67 | G62: Müük | H62: sekretär | I62: 570
A63: 44311130888 | B63: Sirje | C63: Härm | D63: naine | E63: 1943-11-13 | F63: 75 | G63: Ost | H63: sekretär | I63: 570
A66: Kirjed, kus amet on jurist või müügijuht, vanus >= 50 ja palk >= 1200
A68: Eesnimi | B68: Perenimi | C68: Amet | D68: Vanus | E68: Palk
A69: Malle | B69: Ligi | C69: jurist | D69: 63 | E69: 1510
A70: Tarmo | B70: Müller | C70: müügijuht | D70: 52 | E70: 1390

Sheet P_Müügid
B2: Puidu müük | D2: AS Karu & Pojad | H2: =YEAR(C9) -> 2013 | K2: P-abi
B4: sortimine | C4: autofilter | D4: arend. filter | E4: vahekokkuv. | F4: risttabel | G4: SumIF
G6: Kokku | I6: =SUM(P_kogus) -> 85495 | K6: =SUM(P_maks) -> 5606050
B8: P_arve | C8: P_kuupäev | D8: P_ostja | E8: P_maa | F8: P_liik | G8: P_sort | H8: P_müüja | I8: P_kogus | J8: P_hind | K8: P_maks | L8: P_kuu
B9: P256 | C9: 2013-11-04 | D9: Känd | E9: =VLOOKUP(P_ostja, o_tab, 2, 0) -> Harju | F9: haab | G9: 1 | H9: Ilves | I9: 23 | J9: =VLOOKUP(P_liik, P_hinnad, P_sort+1, 0) -> 50 | K9: =P_hind * P_kogus -> 1150 | L9: =MONTH(P_kuupäev) -> 11
F10: haab Total | I10: =SUBTOTAL(9,I9:I9) -> 23 | K10: =SUBTOTAL(9,K9:K9) -> 1150
B11: P176 | C11: 2013-08-04 | D11: Känd | E11: =VLOOKUP(P_ostja, o_tab, 2, 0) -> Harju | F11: kask | G11: 1 | H11: Siil | I11: 40 | J11: =VLOOKUP(P_liik, P_hinnad, P_sort+1, 0) -> 70 | K11: =P_hind * P_kogus -> 2800 | L11: =MONTH(P_kuupäev) -> 8
B12: P199 | C12: 2013-08-30 | D12: Känd | E12: =VLOOKUP(P_ostja, o_tab, 2, 0) -> Harju | F12: kask | G12: 1 | H12: Rebane | I12: 14 | J12: =VLOOKUP(P_liik, P_hinnad, P_sort+1, 0) -> 70 | K12: =P_hind * P_kogus -> 980 | L12: =MONTH(P_kuupäev) -> 8
F13: kask Total | I13: =SUBTOTAL(9,I11:I12) -> 54 | K13: =SUBTOTAL(9,K11:K12) -> 3780
B14: P070 | C14: 2013-03-25 | D14: Känd | E14: =VLOOKUP(P_ostja, o_tab, 2, 0) -> Harju | F14: kuusk | G14: 1 | H14: Ilves | I14: 72 | J14: =VLOOKUP(P_liik, P_hinnad, P_sort+1, 0) -> 80 | K14: =P_hind * P_kogus -> 5760 | L14: =MONTH(P_kuupäev) -> 3
B15: P070 | C15: 2013-03-25 | D15: Känd | E15: =VLOOKUP(P_ostja, o_tab, 2, 0) -> Harju | F15: kuusk | G15: 2 | H15: Ilves | I15: 58 | J15: =VLOOKUP(P_liik, P_hinnad, P_sort+1, 0) -> 72 | K15: =P_hind * P_kogus -> 4176 | L15: =MONTH(P_kuupäev) -> 3
B16: P097 | C16: 2013-04-24 | D16: Känd | E16: =VLOOKUP(P_ostja, o_tab, 2, 0) -> Harju | F16: kuusk | G16: 1 | H16: Ilves | I16: 29 | J16: =VLOOKUP(P_liik, P_hinnad, P_sort+1, 0) -> 80 | K16: =P_hind * P_kogus -> 2320 | L16: =MONTH(P_kuupäev) -> 4
F17: kuusk Total | I17: =SUBTOTAL(9,I14:I16) -> 159 | K17: =SUBTOTAL(9,K14:K16) -> 12256
B18: P097 | C18: 2013-04-24 | D18: Känd | E18: =VLOOKUP(P_ostja, o_tab, 2, 0) -> Harju | F18: küte | G18: 3 | H18: Ilves | I18: 63 | J18: =VLOOKUP(P_liik, P_hinnad, P_sort+1, 0) -> 38 | K18: =P_hind * P_kogus -> 2394 | L18: =MONTH(P_kuupäev) -> 4
F19: küte Total | I19: =SUBTOTAL(9,I18:I18) -> 63 | K19: =SUBTOTAL(9,K18:K18) -> 2394
B20: P088 | C20: 2013-04-16 | D20: Känd | E20: =VLOOKUP(P_ostja, o_tab, 2, 0) -> Harju | F20: lepp | G20: 1 | H20: Põder | I20: 40 | J20: =VLOOKUP(P_liik, P_hinnad, P_sort+1, 0) -> 65 | K20: =P_hind * P_kogus -> 2600 | L20: =MONTH(P_kuupäev) -> 4
B21: P176 | C21: 2013-08-04 | D21: Känd | E21: =VLOOKUP(P_ostja, o_tab, 2, 0) -> Harju | F21: lepp | G21: 2 | H21: Siil | I21: 31 | J21: =VLOOKUP(P_liik, P_hinnad, P_sort+1, 0) -> 59 | K21: =P_hind * P_kogus -> 1829 | L21: =MONTH(P_kuupäev) -> 8
B22: P180 | C22: 2013-08-08 | D22: Känd | E22: =VLOOKUP(P_ostja, o_tab, 2, 0) -> Harju | F22: lepp | G22: 3 | H22: Hunt | I22: 31 | J22: =VLOOKUP(P_liik, P_hinnad, P_sort+1, 0) -> 52 | K22: =P_hind * P_kogus -> 1612 | L22: =MONTH(P_kuupäev) -> 8
B23: P199 | C23: 2013-08-30 | D23: Känd | E23: =VLOOKUP(P_ostja, o_tab, 2, 0) -> Harju | F23: lepp | G23: 3 | H23: Rebane | I23: 10 | J23: =VLOOKUP(P_liik, P_hinnad, P_sort+1, 0) -> 52 | K23: =P_hind * P_kogus -> 520 | L23: =MONTH(P_kuupäev) -> 8
F24: lepp Total | I24: =SUBTOTAL(9,I20:I23) -> 112 | K24: =SUBTOTAL(9,K20:K23) -> 6561
B25: P088 | C25: 2013-04-16 | D25: Känd | E25: =VLOOKUP(P_ostja, o_tab, 2, 0) -> Harju | F25: mänd | G25: 2 | H25: Põder | I25: 61 | J25: =VLOOKUP(P_liik, P_hinnad, P_sort+1, 0) -> 68 | K25: =P_hind * P_kogus -> 4148 | L25: =MONTH(P_kuupäev) -> 4
B26: P131 | C26: 2013-05-29 | D26: Känd | E26: =VLOOKUP(P_ostja, o_tab, 2, 0) -> Harju | F26: mänd | G26: 3 | H26: Hunt | I26: 79 | J26: =VLOOKUP(P_liik, P_hinnad, P_sort+1, 0) -> 60 | K26: =P_hind * P_kogus -> 4740 | L26: =MONTH(P_kuupäev) -> 5
F27: mänd Total | I27: =SUBTOTAL(9,I25:I26) -> 140 | K27: =SUBTOTAL(9,K25:K26) -> 8888
B28: P151 | C28: 2013-07-01 | D28: Känd | E28: =VLOOKUP(P_ostja, o_tab, 2, 0) -> Harju | F28: saar | G28: 1 | H28: Jänes | I28: 49 | J28: =VLOOKUP(P_liik, P_hinnad, P_sort+1, 0) -> 85 | K28: =P_hind * P_kogus -> 4165 | L28: =MONTH(P_kuupäev) -> 7
B29: P180 | C29: 2013-08-08 | D29: Känd | E29: =VLOOKUP(P_ostja, o_tab, 2, 0) -> Harju | F29: saar | G29: 1 | H29: Hunt | I29: 23 | J29: =VLOOKUP(P_liik, P_hinnad, P_sort+1, 0) -> 85 | K29: =P_hind * P_kogus -> 1955 | L29: =MONTH(P_kuupäev) -> 8
F30: saar Total | I30: =SUBTOTAL(9,I28:I29) -> 72 | K30: =SUBTOTAL(9,K28:K29) -> 6120
B31: P026 | C31: 2013-01-28 | D31: Känd | E31: =VLOOKUP(P_ostja, o_tab, 2, 0) -> Harju | F31: tamm | G31: 2 | H31: Siil | I31: 11 | J31: =VLOOKUP(P_liik, P_hinnad, P_sort+1, 0) -> 99 | K31: =P_hind * P_kogus -> 1089 | L31: =MONTH(P_kuupäev) -> 1
B32: P097 | C32: 2013-04-24 | D32: Känd | E32: =VLOOKUP(P_ostja, o_tab, 2, 0) -> Harju | F32: tamm | G32: 1 | H32: Ilves | I32: 43 | J32: =VLOOKUP(P_liik, P_hinnad, P_sort+1, 0) -> 110 | K32: =P_hind * P_kogus -> 4730 | L32: =MONTH(P_kuupäev) -> 4
F33: tamm Total | I33: =SUBTOTAL(9,I31:I32) -> 54 | K33: =SUBTOTAL(9,K31:K32) -> 5819
D34: Känd Total | I34: =SUBTOTAL(9,I9:I32) -> 677 | K34: =SUBTOTAL(9,K9:K32) -> 46968
B35: P042 | C35: 2013-02-21 | D35: Mänd | E35: =VLOOKUP(P_ostja, o_tab, 2, 0) -> Harju | F35: haab | G35: 3 | H35: Põder | I35: 26 | J35: =VLOOKUP(P_liik, P_hinnad, P_sort+1, 0) -> 40 | K35: =P_hind * P_kogus -> 1040 | L35: =MONTH(P_kuupäev) -> 2
F36: haab Total | I36: =SUBTOTAL(9,I35:I35) -> 26 | K36: =SUBTOTAL(9,K35:K35) -> 1040
B37: P237 | C37: 2013-10-16 | D37: Mänd | E37: =VLOOKUP(P_ostja, o_tab, 2, 0) -> Harju | F37: kask | G37: 3 | H37: Karu | I37: 76 | J37: =VLOOKUP(P_liik, P_hinnad, P_sort+1, 0) -> 56 | K37: =P_hind * P_kogus -> 4256 | L37: =MONTH(P_kuupäev) -> 10
B38: P237 | C38: 2013-10-16 | D38: Mänd | E38: =VLOOKUP(P_ostja, o_tab, 2, 0) -> Harju | F38: kask | G38: 1 | H38: Karu | I38: 49 | J38: =VLOOKUP(P_liik, P_hinnad, P_sort+1, 0) -> 70 | K38: =P_hind * P_kogus -> 3430 | L38: =MONTH(P_kuupäev) -> 10
F39: kask Total | I39: =SUBTOTAL(9,I37:I38) -> 125 | K39: =SUBTOTAL(9,K37:K38) -> 7686
B40: P257 | C40: 2013-11-05 | D40: Mänd | E40: =VLOOKUP(P_ostja, o_tab, 2, 0) -> Harju | F40: kuusk | G40: 1 | H40: Põder | I40: 68 | J40: =VLOOKUP(P_liik, P_hinnad, P_sort+1, 0) -> 80 | K40: =P_hind * P_kogus -> 5440 | L40: =MONTH(P_kuupäev) -> 11
F41: kuusk Total | I41: =SUBTOTAL(9,I40:I40) -> 68 | K41: =SUBTOTAL(9,K40:K40) -> 5440
B42: P009 | C42: 2013-01-08 | D42: Mänd | E42: =VLOOKUP(P_ostja, o_tab, 2, 0) -> Harju | F42: küte | G42: 1 | H42: Jänes | I42: 45 | J42: =VLOOKUP(P_liik, P_hinnad, P_sort+1, 0) -> 47 | K42: =P_hind * P_kogus -> 2115 | L42: =MONTH(P_kuupäev) -> 1
B43: P244 | C43: 2013-10-22 | D43: Mänd | E43: =VLOOKUP(P_ostja, o_tab, 2, 0) -> Harju | F43: küte | G43: 3 | H43: Siil | I43: 61 | J43: =VLOOKUP(P_liik, P_hinnad, P_sort+1, 0) -> 38 | K43: =P_hind * P_kogus -> 2318 | L43: =MONTH(P_kuupäev) -> 10
F44: küte Total | I44: =SUBTOTAL(9,I42:I43) -> 106 | K44: =SUBTOTAL(9,K42:K43) -> 4433
B45: P089 | C45: 2013-04-16 | D45: Mänd | E45: =VLOOKUP(P_ostja, o_tab, 2, 0) -> Harju | F45: lepp | G45: 2 | H45: Põder | I45: 25 | J45: =VLOOKUP(P_liik, P_hinnad, P_sort+1, 0) -> 59 | K45: =P_hind * P_kogus -> 1475 | L45: =MONTH(P_kuupäev) -> 4
F46: lepp Total | I46: =SUBTOTAL(9,I45:I45) -> 25 | K46: =SUBTOTAL(9,K45:K45) -> 1475
B47: P041 | C47: 2013-02-20 | D47: Mänd | E47: =VLOOKUP(P_ostja, o_tab, 2, 0) -> Harju | F47: mänd | G47: 1 | H47: Siil | I47: 74 | J47: =VLOOKUP(P_liik, P_hinnad, P_sort+1, 0) -> 75 | K47: =P_hind * P_kogus -> 5550 | L47: =MONTH(P_kuupäev) -> 2
B48: P145 | C48: 2013-06-19 | D48: Mänd | E48: =VLOOKUP(P_ostja, o_tab, 2, 0) -> Harju | F48: mänd | G48: 3 | H48: Karu | I48: 47 | J48: =VLOOKUP(P_liik, P_hinnad, P_sort+1, 0) -> 60 | K48: =P_hind * P_kogus -> 2820 | L48: =MONTH(P_kuupäev) -> 6
B49: P240 | C49: 2013-10-19 | D49: Mänd | E49: =VLOOKUP(P_ostja, o_tab, 2, 0) -> Harju | F49: mänd | G49: 1 | H49: Ilves | I49: 55 | J49: =VLOOKUP(P_liik, P_hinnad, P_sort+1, 0) -> 75 | K49: =P_hind * P_kogus -> 4125 | L49: =MONTH(P_kuupäev) -> 10
B50: P257 | C50: 2013-11-05 | D50: Mänd | E50: =VLOOKUP(P_ostja, o_tab, 2, 0) -> Harju | F50: mänd | G50: 2 | H50: Põder | I50: 23 | J50: =VLOOKUP(P_liik, P_hinnad, P_sort+1, 0) -> 68 | K50: =P_hind * P_kogus -> 1564 | L50: =MONTH(P_kuupäev) -> 11
F51: mänd Total | I51: =SUBTOTAL(9,I47:I50) -> 199 | K51: =SUBTOTAL(9,K47:K50) -> 14059
B52: P042 | C52: 2013-02-21 | D52: Mänd | E52: =VLOOKUP(P_ostja, o_tab, 2, 0) -> Harju | F52: saar | G52: 1 | H52: Põder | I52: 49 | J52: =VLOOKUP(P_liik, P_hinnad, P_sort+1, 0) -> 85 | K52: =P_hind * P_kogus -> 4165 | L52: =MONTH(P_kuupäev) -> 2
F53: saar Total | I53: =SUBTOTAL(9,I52:I52) -> 49 | K53: =SUBTOTAL(9,K52:K52) -> 4165
D54: Mänd Total | I54: =SUBTOTAL(9,I35:I52) -> 598 | K54: =SUBTOTAL(9,K35:K52) -> 38298
B55: P247 | C55: 2013-10-25 | D55: Tuvi | E55: =VLOOKUP(P_ostja, o_tab, 2, 0) -> Harju | F55: haab | G55: 2 | H55: Põder | I55: 10 | J55: =VLOOKUP(P_liik, P_hinnad, P_sort+1, 0) -> 45 | K55: =P_hind * P_kogus -> 450 | L55: =MONTH(P_kuupäev) -> 10
F56: haab Total | I56: =SUBTOTAL(9,I55:I55) -> 10 | K56: =SUBTOTAL(9,K55:K55) -> 450
B57: P273 | C57: 2013-12-01 | D57: Tuvi | E57: =VLOOKUP(P_ostja, o_tab, 2, 0) -> Harju | F57: kask | G57: 2 | H57: Karu | I57: 48 | J57: =VLOOKUP(P_liik, P_hinnad, P_sort+1, 0) -> 63 | K57: =P_hind * P_kogus -> 3024 | L57: =MONTH(P_kuupäev) -> 12
F58: kask Total | I58: =SUBTOTAL(9,I57:I57) -> 48 | K58: =SUBTOTAL(9,K57:K57) -> 3024
B59: P242 | C59: 2013-10-21 | D59: Tuvi | E59: =VLOOKUP(P_ostja, o_tab, 2, 0) -> Harju | F59: kuusk | G59: 1 | H59: Karu | I59: 24 | J59: =VLOOKUP(P_liik, P_hinnad, P_sort+1, 0) -> 80 | K59: =P_hind * P_kogus -> 1920 | L59: =MONTH(P_kuupäev) -> 10
B60: P247 | C60: 2013-10-25 | D60: Tuvi | E60: =VLOOKUP(P_ostja, o_tab, 2, 0) -> Harju | F60: kuusk | G60: 1 | H60: Põder | I60: 39 | J60: =VLOOKUP(P_liik, P_hinnad, P_sort+1, 0) -> 80 | K60: =P_hind * P_kogus -> 3120 | L60: =MONTH(P_kuupäev) -> 10
B61: P283 | C61: 2013-12-12 | D61: Tuvi | E61: =VLOOKUP(P_ostja, o_tab, 2, 0) -> Harju | F61: kuusk | G61: 1 | H61: Karu | I61: 63 | J61: =VLOOKUP(P_liik, P_hinnad, P_sort+1, 0) -> 80 | K61: =P_hind * P_kogus -> 5040 | L61: =MONTH(P_kuupäev) -> 12
B62: P284 | C62: 2013-12-13 | D62: Tuvi | E62: =VLOOKUP(P_ostja, o_tab, 2, 0) -> Harju | F62: kuusk | G62: 1 | H62: Hunt | I62: 26 | J62: =VLOOKUP(P_liik, P_hinnad, P_sort+1, 0) -> 80 | K62: =P_hind * P_kogus -> 2080 | L62: =MONTH(P_kuupäev) -> 12
F63: kuusk Total | I63: =SUBTOTAL(9,I59:I62) -> 152 | K63: =SUBTOTAL(9,K59:K62) -> 12160
B64: P027 | C64: 2013-01-30 | D64: Tuvi | E64: =VLOOKUP(P_ostja, o_tab, 2, 0) -> Harju | F64: küte | G64: 1 | H64: Siil | I64: 27 | J64: =VLOOKUP(P_liik, P_hinnad, P_sort+1, 0) -> 47 | K64: =P_hind * P_kogus -> 1269 | L64: =MONTH(P_kuupäev) -> 1
B65: P166 | C65: 2013-07-23 | D65: Tuvi | E65: =VLOOKUP(P_ostja, o_tab, 2, 0) -> Harju | F65: küte | G65: 1 | H65: Põder | I65: 17 | J65: =VLOOKUP(P_liik, P_hinnad, P_sort+1, 0) -> 47 | K65: =P_hind * P_kogus -> 799 | L65: =MONTH(P_kuupäev) -> 7
F66: küte Total | I66: =SUBTOTAL(9,I64:I65) -> 44 | K66: =SUBTOTAL(9,K64:K65) -> 2068
B67: P094 | C67: 2013-04-20 | D67: Tuvi | E67: =VLOOKUP(P_ostja, o_tab, 2, 0) -> Harju | F67: lepp | G67: 1 | H67: Hunt | I67: 30 | J67: =VLOOKUP(P_liik, P_hinnad, P_sort+1, 0) -> 65 | K67: =P_hind * P_kogus -> 1950 | L67: =MONTH(P_kuupäev) -> 4
B68: P129 | C68: 2013-05-26 | D68: Tuvi | E68: =VLOOKUP(P_ostja, o_tab, 2, 0) -> Harju | F68: lepp | G68: 1 | H68: Siil | I68: 24 | J68: =VLOOKUP(P_liik, P_hinnad, P_sort+1, 0) -> 65 | K68: =P_hind * P_kogus -> 1560 | L68: =MONTH(P_kuupäev) -> 5
F69: lepp Total | I69: =SUBTOTAL(9,I67:I68) -> 54 | K69: =SUBTOTAL(9,K67:K68) -> 3510
B70: P094 | C70: 2013-04-20 | D70: Tuvi | E70: =VLOOKUP(P_ostja, o_tab, 2, 0) -> Harju | F70: mänd | G70: 2 | H70: Hunt | I70: 53 | J70: =VLOOKUP(P_liik, P_hinnad, P_sort+1, 0) -> 68 | K70: =P_hind * P_kogus -> 3604 | L70: =MONTH(P_kuupäev) -> 4
B71: P163 | C71: 2013-07-18 | D71: Tuvi | E71: =VLOOKUP(P_ostja, o_tab, 2, 0) -> Harju | F71: mänd | G71: 3 | H71: Rebane | I71: 36 | J71: =VLOOKUP(P_liik, P_hinnad, P_sort+1, 0) -> 60 | K71: =P_hind * P_kogus -> 2160 | L71: =MONTH(P_kuupäev) -> 7
B72: P166 | C72: 2013-07-23 | D72: Tuvi | E72: =VLOOKUP(P_ostja, o_tab, 2, 0) -> Harju | F72: mänd | G72: 1 | H72: Põder | I72: 74 | J72: =VLOOKUP(P_liik, P_hinnad, P_sort+1, 0) -> 75 | K72: =P_hind * P_kogus -> 5550 | L72: =MONTH(P_kuupäev) -> 7
B73: P242 | C73: 2013-10-21 | D73: Tuvi | E73: =VLOOKUP(P_ostja, o_tab, 2, 0) -> Harju | F73: mänd | G73: 3 | H73: Karu | I73: 60 | J73: =VLOOKUP(P_liik, P_hinnad, P_sort+1, 0) -> 60 | K73: =P_hind * P_kogus -> 3600 | L73: =MONTH(P_kuupäev) -> 10
F74: mänd Total | I74: =SUBTOTAL(9,I70:I73) -> 223 | K74: =SUBTOTAL(9,K70:K73) -> 14914
B75: P066 | C75: 2013-03-22 | D75: Tuvi | E75: =VLOOKUP(P_ostja, o_tab, 2, 0) -> Harju | F75: saar | G75: 1 | H75: Karu | I75: 67 | J75: =VLOOKUP(P_liik, P_hinnad, P_sort+1, 0) -> 85 | K75: =P_hind * P_kogus -> 5695 | L75: =MONTH(P_kuupäev) -> 3
B76: P066 | C76: 2013-03-22 | D76: Tuvi | E76: =VLOOKUP(P_ostja, o_tab, 2, 0) -> Harju | F76: saar | G76: 1 | H76: Karu | I76: 52 | J76: =VLOOKUP(P_liik, P_hinnad, P_sort+1, 0) -> 85 | K76: =P_hind * P_kogus -> 4420 | L76: =MONTH(P_kuupäev) -> 3
B77: P163 | C77: 2013-07-18 | D77: Tuvi | E77: =VLOOKUP(P_ostja, o_tab, 2, 0) -> Harju | F77: saar | G77: 2 | H77: Rebane | I77: 12 | J77: =VLOOKUP(P_liik, P_hinnad, P_sort+1, 0) -> 77 | K77: =P_hind * P_kogus -> 924 | L77: =MONTH(P_kuupäev) -> 7
F78: saar Total | I78: =SUBTOTAL(9,I75:I77) -> 131 | K78: =SUBTOTAL(9,K75:K77) -> 11039
B79: P284 | C79: 2013-12-13 | D79: Tuvi | E79: =VLOOKUP(P_ostja, o_tab, 2, 0) -> Harju | F79: tamm | G79: 2 | H79: Hunt | I79: 18 | J79: =VLOOKUP(P_liik, P_hinnad, P_sort+1, 0) -> 99 | K79: =P_hind * P_kogus -> 1782 | L79: =MONTH(P_kuupäev) -> 12
F80: tamm Total | I80: =SUBTOTAL(9,I79:I79) -> 18 | K80: =SUBTOTAL(9,K79:K79) -> 1782
D81: Tuvi Total | I81: =SUBTOTAL(9,I55:I79) -> 680 | K81: =SUBTOTAL(9,K55:K79) -> 48947
B82: P015 | C82: 2013-01-16 | D82: Varblane | E82: =VLOOKUP(P_ostja, o_tab, 2, 0) -> Harju | F82: haab | G82: 3 | H82: Hunt | I82: 17 | J82: =VLOOKUP(P_liik, P_hinnad, P_sort+1, 0) -> 40 | K82: =P_hind * P_kogus -> 680 | L82: =MONTH(P_kuupäev) -> 1
B83: P059 | C83: 2013-03-12 | D83: Varblane | E83: =VLOOKUP(P_ostja, o_tab, 2, 0) -> Harju | F83: haab | G83: 2 | H83: Põder | I83: 75 | J83: =VLOOKUP(P_liik, P_hinnad, P_sort+1, 0) -> 45 | K83: =P_hind * P_kogus -> 3375 | L83: =MONTH(P_kuupäev) -> 3
B84: P062 | C84: 2013-03-18 | D84: Varblane | E84: =VLOOKUP(P_ostja, o_tab, 2, 0) -> Harju | F84: haab | G84: 2 | H84: Jänes | I84: 49 | J84: =VLOOKUP(P_liik, P_hinnad, P_sort+1, 0) -> 45 | K84: =P_hind * P_kogus -> 2205 | L84: =MONTH(P_kuupäev) -> 3
B85: P062 | C85: 2013-03-18 | D85: Varblane | E85: =VLOOKUP(P_ostja, o_tab, 2, 0) -> Harju | F85: haab | G85: 1 | H85: Jänes | I85: 36 | J85: =VLOOKUP(P_liik, P_hinnad, P_sort+1, 0) -> 50 | K85: =P_hind * P_kogus -> 1800 | L85: =MONTH(P_kuupäev) -> 3
B86: P083 | C86: 2013-04-10 | D86: Varblane | E86: =VLOOKUP(P_ostja, o_tab, 2, 0) -> Harju | F86: haab | G86: 1 | H86: Rebane | I86: 30 | J86: =VLOOKUP(P_liik, P_hinnad, P_sort+1, 0) -> 50 | K86: =P_hind * P_kogus -> 1500 | L86: =MONTH(P_kuupäev) -> 4
B87: P200 | C87: 2013-08-31 | D87: Varblane | E87: =VLOOKUP(P_ostja, o_tab, 2, 0) -> Harju | F87: haab | G87: 1 | H87: Rebane | I87: 25 | J87: =VLOOKUP(P_liik, P_hinnad, P_sort+1, 0) -> 50 | K87: =P_hind * P_kogus -> 1250 | L87: =MONTH(P_kuupäev) -> 8
B88: P218 | C88: 2013-09-24 | D88: Varblane | E88: =VLOOKUP(P_ostja, o_tab, 2, 0) -> Harju | F88: haab | G88: 2 | H88: Rebane | I88: 58 | J88: =VLOOKUP(P_liik, P_hinnad, P_sort+1, 0) -> 45 | K88: =P_hind * P_kogus -> 2610 | L88: =MONTH(P_kuupäev) -> 9
B89: P254 | C89: 2013-11-01 | D89: Varblane | E89: =VLOOKUP(P_ostja, o_tab, 2, 0) -> Harju | F89: haab | G89: 1 | H89: Jänes | I89: 26 | J89: =VLOOKUP(P_liik, P_hinnad, P_sort+1, 0) -> 50 | K89: =P_hind * P_kogus -> 1300 | L89: =MONTH(P_kuupäev) -> 11
F90: haab Total | I90: =SUBTOTAL(9,I82:I89) -> 316 | K90: =SUBTOTAL(9,K82:K89) -> 14720
B91: P046 | C91: 2013-02-27 | D91: Varblane | E91: =VLOOKUP(P_ostja, o_tab, 2, 0) -> Harju | F91: kask | G91: 1 | H91: Rebane | I91: 34 | J91: =VLOOKUP(P_liik, P_hinnad, P_sort+1, 0) -> 70 | K91: =P_hind * P_kogus -> 2380 | L91: =MONTH(P_kuupäev) -> 2
B92: P049 | C92: 2013-03-01 | D92: Varblane | E92: =VLOOKUP(P_ostja, o_tab, 2, 0) -> Harju | F92: kask | G92: 1 | H92: Siil | I92: 73 | J92: =VLOOKUP(P_liik, P_hinnad, P_sort+1, 0) -> 70 | K92: =P_hind * P_kogus -> 5110 | L92: =MONTH(P_kuupäev) -> 3
B93: P232 | C93: 2013-10-11 | D93: Varblane | E93: =VLOOKUP(P_ostja, o_tab, 2, 0) -> Harju | F93: kask | G93: 3 | H93: Põder | I93: 71 | J93: =VLOOKUP(P_liik, P_hinnad, P_sort+1, 0) -> 56 | K93: =P_hind * P_kogus -> 3976 | L93: =MONTH(P_kuupäev) -> 10
B94: P254 | C94: 2013-11-01 | D94: Varblane | E94: =VLOOKUP(P_ostja, o_tab, 2, 0) -> Harju | F94: kask | G94: 3 | H94: Jänes | I94: 52 | J94: =VLOOKUP(P_liik, P_hinnad, P_sort+1, 0) -> 56 | K94: =P_hind * P_kogus -> 2912 | L94: =MONTH(P_kuupäev) -> 11
F95: kask Total | I95: =SUBTOTAL(9,I91:I94) -> 230 | K95: =SUBTOTAL(9,K91:K94) -> 14378
B96: P104 | C96: 2013-04-30 | D96: Varblane | E96: =VLOOKUP(P_ostja, o_tab, 2, 0) -> Harju | F96: kuusk | G96: 2 | H96: Ilves | I96: 54 | J96: =VLOOKUP(P_liik, P_hinnad, P_sort+1, 0) -> 72 | K96: =P_hind * P_kogus -> 3888 | L96: =MONTH(P_kuupäev) -> 4
B97: P218 | C97: 2013-09-24 | D97: Varblane | E97: =VLOOKUP(P_ostja, o_tab, 2, 0) -> Harju | F97: kuusk | G97: 1 | H97: Rebane | I97: 53 | J97: =VLOOKUP(P_liik, P_hinnad, P_sort+1, 0) -> 80 | K97: =P_hind * P_kogus -> 4240 | L97: =MONTH(P_kuupäev) -> 9
F98: kuusk Total | I98: =SUBTOTAL(9,I96:I97) -> 107 | K98: =SUBTOTAL(9,K96:K97) -> 8128
B99: P218 | C99: 2013-09-24 | D99: Varblane | E99: =VLOOKUP(P_ostja, o_tab, 2, 0) -> Harju | F99: küte | G99: 3 | H99: Rebane | I99: 77 | J99: =VLOOKUP(P_liik, P_hinnad, P_sort+1, 0) -> 38 | K99: =P_hind * P_kogus -> 2926 | L99: =MONTH(P_kuupäev) -> 9
F100: küte Total | I100: =SUBTOTAL(9,I99:I99) -> 77 | K100: =SUBTOTAL(9,K99:K99) -> 2926
B101: P060 | C101: 2013-03-13 | D101: Varblane | E101: =VLOOKUP(P_ostja, o_tab, 2, 0) -> Harju | F101: lepp | G101: 2 | H101: Karu | I101: 46 | J101: =VLOOKUP(P_liik, P_hinnad, P_sort+1, 0) -> 59 | K101: =P_hind * P_kogus -> 2714 | L101: =MONTH(P_kuupäev) -> 3
B102: P214 | C102: 2013-09-21 | D102: Varblane | E102: =VLOOKUP(P_ostja, o_tab, 2, 0) -> Harju | F102: lepp | G102: 1 | H102: Jänes | I102: 58 | J102: =VLOOKUP(P_liik, P_hinnad, P_sort+1, 0) -> 65 | K102: =P_hind * P_kogus -> 3770 | L102: =MONTH(P_kuupäev) -> 9
B103: P274 | C103: 2013-12-01 | D103: Varblane | E103: =VLOOKUP(P_ostja, o_tab, 2, 0) -> Harju | F103: lepp | G103: 1 | H103: Siil | I103: 67 | J103: =VLOOKUP(P_liik, P_hinnad, P_sort+1, 0) -> 65 | K103: =P_hind * P_kogus -> 4355 | L103: =MONTH(P_kuupäev) -> 12
F104: lepp Total | I104: =SUBTOTAL(9,I101:I103) -> 171 | K104: =SUBTOTAL(9,K101:K103) -> 10839
B105: P087 | C105: 2013-04-15 | D105: Varblane | E105: =VLOOKUP(P_ostja, o_tab, 2, 0) -> Harju | F105: mänd | G105: 1 | H105: Hunt | I105: 69 | J105: =VLOOKUP(P_liik, P_hinnad, P_sort+1, 0) -> 75 | K105: =P_hind * P_kogus -> 5175 | L105: =MONTH(P_kuupäev) -> 4
B106: P104 | C106: 2013-04-30 | D106: Varblane | E106: =VLOOKUP(P_ostja, o_tab, 2, 0) -> Harju | F106: mänd | G106: 1 | H106: Ilves | I106: 25 | J106: =VLOOKUP(P_liik, P_hinnad, P_sort+1, 0) -> 75 | K106: =P_hind * P_kogus -> 1875 | L106: =MONTH(P_kuupäev) -> 4
B107: P172 | C107: 2013-07-30 | D107: Varblane | E107: =VLOOKUP(P_ostja, o_tab, 2, 0) -> Harju | F107: mänd | G107: 2 | H107: Hunt | I107: 73 | J107: =VLOOKUP(P_liik, P_hinnad, P_sort+1, 0) -> 68 | K107: =P_hind * P_kogus -> 4964 | L107: =MONTH(P_kuupäev) -> 7
F108: mänd Total | I108: =SUBTOTAL(9,I105:I107) -> 167 | K108: =SUBTOTAL(9,K105:K107) -> 12014
B109: P015 | C109: 2013-01-16 | D109: Varblane | E109: =VLOOKUP(P_ostja, o_tab, 2, 0) -> Harju | F109: saar | G109: 1 | H109: Hunt | I109: 40 | J109: =VLOOKUP(P_liik, P_hinnad, P_sort+1, 0) -> 85 | K109: =P_hind * P_kogus -> 3400 | L109: =MONTH(P_kuupäev) -> 1
B110: P083 | C110: 2013-04-10 | D110: Varblane | E110: =VLOOKUP(P_ostja, o_tab, 2, 0) -> Harju | F110: saar | G110: 1 | H110: Rebane | I110: 36 | J110: =VLOOKUP(P_liik, P_hinnad, P_sort+1, 0) -> 85 | K110: =P_hind * P_kogus -> 3060 | L110: =MONTH(P_kuupäev) -> 4
B111: P102 | C111: 2013-04-28 | D111: Varblane | E111: =VLOOKUP(P_ostja, o_tab, 2, 0) -> Harju | F111: saar | G111: 2 | H111: Põder | I111: 48 | J111: =VLOOKUP(P_liik, P_hinnad, P_sort+1, 0) -> 77 | K111: =P_hind * P_kogus -> 3696 | L111: =MONTH(P_kuupäev) -> 4
F112: saar Total | I112: =SUBTOTAL(9,I109:I111) -> 124 | K112: =SUBTOTAL(9,K109:K111) -> 10156
B113: P200 | C113: 2013-08-31 | D113: Varblane | E113: =VLOOKUP(P_ostja, o_tab, 2, 0) -> Harju | F113: tamm | G113: 1 | H113: Rebane | I113: 36 | J113: =VLOOKUP(P_liik, P_hinnad, P_sort+1, 0) -> 110 | K113: =P_hind * P_kogus -> 3960 | L113: =MONTH(P_kuupäev) -> 8
F114: tamm Total | I114: =SUBTOTAL(9,I113:I113) -> 36 | K114: =SUBTOTAL(9,K113:K113) -> 3960
B115: P015 | C115: 2013-01-16 | D115: Varblane | E115: =VLOOKUP(P_ostja, o_tab, 2, 0) -> Harju | F115: vaher | G115: 1 | H115: Hunt | I115: 27 | J115: =VLOOKUP(P_liik, P_hinnad, P_sort+1, 0) -> 95 | K115: =P_hind * P_kogus -> 2565 | L115: =MONTH(P_kuupäev) -> 1
B116: P062 | C116: 2013-03-18 | D116: Varblane | E116: =VLOOKUP(P_ostja, o_tab, 2, 0) -> Harju | F116: vaher | G116: 1 | H116: Jänes | I116: 27 | J116: =VLOOKUP(P_liik, P_hinnad, P_sort+1, 0) -> 95 | K116: =P_hind * P_kogus -> 2565 | L116: =MONTH(P_kuupäev) -> 3
F117: vaher Total | I117: =SUBTOTAL(9,I115:I116) -> 54 | K117: =SUBTOTAL(9,K115:K116) -> 5130
D118: Varblane Total | I118: =SUBTOTAL(9,I82:I116) -> 1282 | K118: =SUBTOTAL(9,K82:K116) -> 82251
E119: Harju Total | I119: =SUBTOTAL(9,I9:I116) -> 3237 | K119: =SUBTOTAL(9,K9:K116) -> 216464
B120: P057 | C120: 2013-03-08 | D120: Ilves | E120: =VLOOKUP(P_ostja, o_tab, 2, 0) -> Lääne | F120: haab | G120: 1 | H120: Siil | I120: 13 | J120: =VLOOKUP(P_liik, P_hinnad, P_sort+1, 0) -> 50 | K120: =P_hind * P_kogus -> 650 | L120: =MONTH(P_kuupäev) -> 3
B121: P250 | C121: 2013-10-28 | D121: Ilves | E121: =VLOOKUP(P_ostja, o_tab, 2, 0) -> Lääne | F121: haab | G121: 3 | H121: Hunt | I121: 59 | J121: =VLOOKUP(P_liik, P_hinnad, P_sort+1, 0) -> 40 | K121: =P_hind * P_kogus -> 2360 | L121: =MONTH(P_kuupäev) -> 10
B122: P269 | C122: 2013-11-27 | D122: Ilves | E122: =VLOOKUP(P_ostja, o_tab, 2, 0) -> Lääne | F122: haab | G122: 3 | H122: Karu | I122: 23 | J122: =VLOOKUP(P_liik, P_hinnad, P_sort+1, 0) -> 40 | K122: =P_hind * P_kogus -> 920 | L122: =MONTH(P_kuupäev) -> 11
F123: haab Total | I123: =SUBTOTAL(9,I120:I122) -> 95 | K123: =SUBTOTAL(9,K120:K122) -> 3930
B124: P016 | C124: 2013-01-17 | D124: Ilves | E124: =VLOOKUP(P_ostja, o_tab, 2, 0) -> Lääne | F124: kask | G124: 1 | H124: Hunt | I124: 13 | J124: =VLOOKUP(P_liik, P_hinnad, P_sort+1, 0) -> 70 | K124: =P_hind * P_kogus -> 910 | L124: =MONTH(P_kuupäev) -> 1
B125: P245 | C125: 2013-10-23 | D125: Ilves | E125: =VLOOKUP(P_ostja, o_tab, 2, 0) -> Lääne | F125: kask | G125: 1 | H125: Karu | I125: 47 | J125: =VLOOKUP(P_liik, P_hinnad, P_sort+1, 0) -> 70 | K125: =P_hind * P_kogus -> 3290 | L125: =MONTH(P_kuupäev) -> 10
B126: P261 | C126: 2013-11-13 | D126: Ilves | E126: =VLOOKUP(P_ostja, o_tab, 2, 0) -> Lääne | F126: kask | G126: 3 | H126: Rebane | I126: 68 | J126: =VLOOKUP(P_liik, P_hinnad, P_sort+1, 0) -> 56 | K126: =P_hind * P_kogus -> 3808 | L126: =MONTH(P_kuupäev) -> 11
F127: kask Total | I127: =SUBTOTAL(9,I124:I126) -> 128 | K127: =SUBTOTAL(9,K124:K126) -> 8008
B128: P198 | C128: 2013-08-29 | D128: Ilves | E128: =VLOOKUP(P_ostja, o_tab, 2, 0) -> Lääne | F128: kuusk | G128: 3 | H128: Karu | I128: 70 | J128: =VLOOKUP(P_liik, P_hinnad, P_sort+1, 0) -> 64 | K128: =P_hind * P_kogus -> 4480 | L128: =MONTH(P_kuupäev) -> 8
B129: P241 | C129: 2013-10-20 | D129: Ilves | E129: =VLOOKUP(P_ostja, o_tab, 2, 0) -> Lääne | F129: kuusk | G129: 2 | H129: Siil | I129: 43 | J129: =VLOOKUP(P_liik, P_hinnad, P_sort+1, 0) -> 72 | K129: =P_hind * P_kogus -> 3096 | L129: =MONTH(P_kuupäev) -> 10
B130: P241 | C130: 2013-10-20 | D130: Ilves | E130: =VLOOKUP(P_ostja, o_tab, 2, 0) -> Lääne | F130: kuusk | G130: 2 | H130: Siil | I130: 43 | J130: =VLOOKUP(P_liik, P_hinnad, P_sort+1, 0) -> 72 | K130: =P_hind * P_kogus -> 3096 | L130: =MONTH(P_kuupäev) -> 10
B131: P245 | C131: 2013-10-23 | D131: Ilves | E131: =VLOOKUP(P_ostja, o_tab, 2, 0) -> Lääne | F131: kuusk | G131: 3 | H131: Karu | I131: 36 | J131: =VLOOKUP(P_liik, P_hinnad, P_sort+1, 0) -> 64 | K131: =P_hind * P_kogus -> 2304 | L131: =MONTH(P_kuupäev) -> 10
F132: kuusk Total | I132: =SUBTOTAL(9,I128:I131) -> 192 | K132: =SUBTOTAL(9,K128:K131) -> 12976
B133: P250 | C133: 2013-10-28 | D133: Ilves | E133: =VLOOKUP(P_ostja, o_tab, 2, 0) -> Lääne | F133: küte | G133: 1 | H133: Hunt | I133: 56 | J133: =VLOOKUP(P_liik, P_hinnad, P_sort+1, 0) -> 47 | K133: =P_hind * P_kogus -> 2632 | L133: =MONTH(P_kuupäev) -> 10
B134: P267 | C134: 2013-11-22 | D134: Ilves | E134: =VLOOKUP(P_ostja, o_tab, 2, 0) -> Lääne | F134: küte | G134: 1 | H134: Hunt | I134: 76 | J134: =VLOOKUP(P_liik, P_hinnad, P_sort+1, 0) -> 47 | K134: =P_hind * P_kogus -> 3572 | L134: =MONTH(P_kuupäev) -> 11
B135: P267 | C135: 2013-11-22 | D135: Ilves | E135: =VLOOKUP(P_ostja, o_tab, 2, 0) -> Lääne | F135: küte | G135: 2 | H135: Hunt | I135: 13 | J135: =VLOOKUP(P_liik, P_hinnad, P_sort+1, 0) -> 42 | K135: =P_hind * P_kogus -> 546 | L135: =MONTH(P_kuupäev) -> 11
F136: küte Total | I136: =SUBTOTAL(9,I133:I135) -> 145 | K136: =SUBTOTAL(9,K133:K135) -> 6750
B137: P143 | C137: 2013-06-15 | D137: Ilves | E137: =VLOOKUP(P_ostja, o_tab, 2, 0) -> Lääne | F137: lepp | G137: 2 | H137: Ilves | I137: 12 | J137: =VLOOKUP(P_liik, P_hinnad, P_sort+1, 0) -> 59 | K137: =P_hind * P_kogus -> 708 | L137: =MONTH(P_kuupäev) -> 6
B138: P182 | C138: 2013-08-13 | D138: Ilves | E138: =VLOOKUP(P_ostja, o_tab, 2, 0) -> Lääne | F138: lepp | G138: 1 | H138: Karu | I138: 36 | J138: =VLOOKUP(P_liik, P_hinnad, P_sort+1, 0) -> 65 | K138: =P_hind * P_kogus -> 2340 | L138: =MONTH(P_kuupäev) -> 8
B139: P261 | C139: 2013-11-13 | D139: Ilves | E139: =VLOOKUP(P_ostja, o_tab, 2, 0) -> Lääne | F139: lepp | G139: 2 | H139: Rebane | I139: 13 | J139: =VLOOKUP(P_liik, P_hinnad, P_sort+1, 0) -> 59 | K139: =P_hind * P_kogus -> 767 | L139: =MONTH(P_kuupäev) -> 11
B140: P267 | C140: 2013-11-22 | D140: Ilves | E140: =VLOOKUP(P_ostja, o_tab, 2, 0) -> Lääne | F140: lepp | G140: 1 | H140: Hunt | I140: 79 | J140: =VLOOKUP(P_liik, P_hinnad, P_sort+1, 0) -> 65 | K140: =P_hind * P_kogus -> 5135 | L140: =MONTH(P_kuupäev) -> 11
F141: lepp Total | I141: =SUBTOTAL(9,I137:I140) -> 140 | K141: =SUBTOTAL(9,K137:K140) -> 8950
B142: P057 | C142: 2013-03-08 | D142: Ilves | E142: =VLOOKUP(P_ostja, o_tab, 2, 0) -> Lääne | F142: mänd | G142: 2 | H142: Siil | I142: 22 | J142: =VLOOKUP(P_liik, P_hinnad, P_sort+1, 0) -> 68 | K142: =P_hind * P_kogus -> 1496 | L142: =MONTH(P_kuupäev) -> 3
B143: P143 | C143: 2013-06-15 | D143: Ilves | E143: =VLOOKUP(P_ostja, o_tab, 2, 0) -> Lääne | F143: mänd | G143: 2 | H143: Ilves | I143: 72 | J143: =VLOOKUP(P_liik, P_hinnad, P_sort+1, 0) -> 68 | K143: =P_hind * P_kogus -> 4896 | L143: =MONTH(P_kuupäev) -> 6
B144: P152 | C144: 2013-07-01 | D144: Ilves | E144: =VLOOKUP(P_ostja, o_tab, 2, 0) -> Lääne | F144: mänd | G144: 1 | H144: Ilves | I144: 15 | J144: =VLOOKUP(P_liik, P_hinnad, P_sort+1, 0) -> 75 | K144: =P_hind * P_kogus -> 1125 | L144: =MONTH(P_kuupäev) -> 7
F145: mänd Total | I145: =SUBTOTAL(9,I142:I144) -> 109 | K145: =SUBTOTAL(9,K142:K144) -> 7517
B146: P245 | C146: 2013-10-23 | D146: Ilves | E146: =VLOOKUP(P_ostja, o_tab, 2, 0) -> Lääne | F146: saar | G146: 3 | H146: Karu | I146: 43 | J146: =VLOOKUP(P_liik, P_hinnad, P_sort+1, 0) -> 68 | K146: =P_hind * P_kogus -> 2924 | L146: =MONTH(P_kuupäev) -> 10
B147: P267 | C147: 2013-11-22 | D147: Ilves | E147: =VLOOKUP(P_ostja, o_tab, 2, 0) -> Lääne | F147: saar | G147: 1 | H147: Hunt | I147: 34 | J147: =VLOOKUP(P_liik, P_hinnad, P_sort+1, 0) -> 85 | K147: =P_hind * P_kogus -> 2890 | L147: =MONTH(P_kuupäev) -> 11
B148: P269 | C148: 2013-11-27 | D148: Ilves | E148: =VLOOKUP(P_ostja, o_tab, 2, 0) -> Lääne | F148: saar | G148: 2 | H148: Karu | I148: 32 | J148: =VLOOKUP(P_liik, P_hinnad, P_sort+1, 0) -> 77 | K148: =P_hind * P_kogus -> 2464 | L148: =MONTH(P_kuupäev) -> 11
F149: saar Total | I149: =SUBTOTAL(9,I146:I148) -> 109 | K149: =SUBTOTAL(9,K146:K148) -> 8278
B150: P016 | C150: 2013-01-17 | D150: Ilves | E150: =VLOOKUP(P_ostja, o_tab, 2, 0) -> Lääne | F150: tamm | G150: 2 | H150: Hunt | I150: 31 | J150: =VLOOKUP(P_liik, P_hinnad, P_sort+1, 0) -> 99 | K150: =P_hind * P_kogus -> 3069 | L150: =MONTH(P_kuupäev) -> 1
F151: tamm Total | I151: =SUBTOTAL(9,I150:I150) -> 31 | K151: =SUBTOTAL(9,K150:K150) -> 3069
B152: P032 | C152: 2013-02-03 | D152: Ilves | E152: =VLOOKUP(P_ostja, o_tab, 2, 0) -> Lääne | F152: vaher | G152: 2 | H152: Karu | I152: 26 | J152: =VLOOKUP(P_liik, P_hinnad, P_sort+1, 0) -> 86 | K152: =P_hind * P_kogus -> 2236 | L152: =MONTH(P_kuupäev) -> 2
B153: P207 | C153: 2013-09-14 | D153: Ilves | E153: =VLOOKUP(P_ostja, o_tab, 2, 0) -> Lääne | F153: vaher | G153: 3 | H153: Rebane | I153: 10 | J153: =VLOOKUP(P_liik, P_hinnad, P_sort+1, 0) -> 76 | K153: =P_hind * P_kogus -> 760 | L153: =MONTH(P_kuupäev) -> 9
F154: vaher Total | I154: =SUBTOTAL(9,I152:I153) -> 36 | K154: =SUBTOTAL(9,K152:K153) -> 2996
D155: Ilves Total | I155: =SUBTOTAL(9,I120:I153) -> 985 | K155: =SUBTOTAL(9,K120:K153) -> 62474
B156: P139 | C156: 2013-06-11 | D156: Karu | E156: =VLOOKUP(P_ostja, o_tab, 2, 0) -> Lääne | F156: kask | G156: 1 | H156: Põder | I156: 72 | J156: =VLOOKUP(P_liik, P_hinnad, P_sort+1, 0) -> 70 | K156: =P_hind * P_kogus -> 5040 | L156: =MONTH(P_kuupäev) -> 6
B157: P170 | C157: 2013-07-28 | D157: Karu | E157: =VLOOKUP(P_ostja, o_tab, 2, 0) -> Lääne | F157: kask | G157: 1 | H157: Ilves | I157: 70 | J157: =VLOOKUP(P_liik, P_hinnad, P_sort+1, 0) -> 70 | K157: =P_hind * P_kogus -> 4900 | L157: =MONTH(P_kuupäev) -> 7
B158: P170 | C158: 2013-07-28 | D158: Karu | E158: =VLOOKUP(P_ostja, o_tab, 2, 0) -> Lääne | F158: kask | G158: 2 | H158: Ilves | I158: 44 | J158: =VLOOKUP(P_liik, P_hinnad, P_sort+1, 0) -> 63 | K158: =P_hind * P_kogus -> 2772 | L158: =MONTH(P_kuupäev) -> 7
F159: kask Total | I159: =SUBTOTAL(9,I156:I158) -> 186 | K159: =SUBTOTAL(9,K156:K158) -> 12712
B160: P275 | C160: 2013-12-01 | D160: Karu | E160: =VLOOKUP(P_ostja, o_tab, 2, 0) -> Lääne | F160: kuusk | G160: 1 | H160: Hunt | I160: 47 | J160: =VLOOKUP(P_liik, P_hinnad, P_sort+1, 0) -> 80 | K160: =P_hind * P_kogus -> 3760 | L160: =MONTH(P_kuupäev) -> 12
B161: P280 | C161: 2013-12-09 | D161: Karu | E161: =VLOOKUP(P_ostja, o_tab, 2, 0) -> Lääne | F161: kuusk | G161: 2 | H161: Põder | I161: 33 | J161: =VLOOKUP(P_liik, P_hinnad, P_sort+1, 0) -> 72 | K161: =P_hind * P_kogus -> 2376 | L161: =MONTH(P_kuupäev) -> 12
F162: kuusk Total | I162: =SUBTOTAL(9,I160:I161) -> 80 | K162: =SUBTOTAL(9,K160:K161) -> 6136
B163: P004 | C163: 2013-01-04 | D163: Karu | E163: =VLOOKUP(P_ostja, o_tab, 2, 0) -> Lääne | F163: küte | G163: 1 | H163: Siil | I163: 12 | J163: =VLOOKUP(P_liik, P_hinnad, P_sort+1, 0) -> 47 | K163: =P_hind * P_kogus -> 564 | L163: =MONTH(P_kuupäev) -> 1
B164: P010 | C164: 2013-01-09 | D164: Karu | E164: =VLOOKUP(P_ostja, o_tab, 2, 0) -> Lääne | F164: küte | G164: 2 | H164: Hunt | I164: 6 | J164: =VLOOKUP(P_liik, P_hinnad, P_sort+1, 0) -> 42 | K164: =P_hind * P_kogus -> 252 | L164: =MONTH(P_kuupäev) -> 1
B165: P210 | C165: 2013-09-17 | D165: Karu | E165: =VLOOKUP(P_ostja, o_tab, 2, 0) -> Lääne | F165: küte | G165: 1 | H165: Jänes | I165: 16 | J165: =VLOOKUP(P_liik, P_hinnad, P_sort+1, 0) -> 47 | K165: =P_hind * P_kogus -> 752 | L165: =MONTH(P_kuupäev) -> 9
B166: P275 | C166: 2013-12-01 | D166: Karu | E166: =VLOOKUP(P_ostja, o_tab, 2, 0) -> Lääne | F166: küte | G166: 2 | H166: Hunt | I166: 17 | J166: =VLOOKUP(P_liik, P_hinnad, P_sort+1, 0) -> 42 | K166: =P_hind * P_kogus -> 714 | L166: =MONTH(P_kuupäev) -> 12
F167: küte Total | I167: =SUBTOTAL(9,I163:I166) -> 51 | K167: =SUBTOTAL(9,K163:K166) -> 2282
B168: P098 | C168: 2013-04-25 | D168: Karu | E168: =VLOOKUP(P_ostja, o_tab, 2, 0) -> Lääne | F168: lepp | G168: 2 | H168: Siil | I168: 65 | J168: =VLOOKUP(P_liik, P_hinnad, P_sort+1, 0) -> 59 | K168: =P_hind * P_kogus -> 3835 | L168: =MONTH(P_kuupäev) -> 4
B169: P139 | C169: 2013-06-11 | D169: Karu | E169: =VLOOKUP(P_ostja, o_tab, 2, 0) -> Lääne | F169: lepp | G169: 2 | H169: Põder | I169: 9 | J169: =VLOOKUP(P_liik, P_hinnad, P_sort+1, 0) -> 59 | K169: =P_hind * P_kogus -> 531 | L169: =MONTH(P_kuupäev) -> 6
B170: P186 | C170: 2013-08-19 | D170: Karu | E170: =VLOOKUP(P_ostja, o_tab, 2, 0) -> Lääne | F170: lepp | G170: 1 | H170: Rebane | I170: 67 | J170: =VLOOKUP(P_liik, P_hinnad, P_sort+1, 0) -> 65 | K170: =P_hind * P_kogus -> 4355 | L170: =MONTH(P_kuupäev) -> 8
B171: P239 | C171: 2013-10-18 | D171: Karu | E171: =VLOOKUP(P_ostja, o_tab, 2, 0) -> Lääne | F171: lepp | G171: 2 | H171: Ilves | I171: 37 | J171: =VLOOKUP(P_liik, P_hinnad, P_sort+1, 0) -> 59 | K171: =P_hind * P_kogus -> 2183 | L171: =MONTH(P_kuupäev) -> 10
B172: P275 | C172: 2013-12-01 | D172: Karu | E172: =VLOOKUP(P_ostja, o_tab, 2, 0) -> Lääne | F172: lepp | G172: 2 | H172: Hunt | I172: 8 | J172: =VLOOKUP(P_liik, P_hinnad, P_sort+1, 0) -> 59 | K172: =P_hind * P_kogus -> 472 | L172: =MONTH(P_kuupäev) -> 12
B173: P286 | C173: 2013-12-20 | D173: Karu | E173: =VLOOKUP(P_ostja, o_tab, 2, 0) -> Lääne | F173: lepp | G173: 1 | H173: Karu | I173: 26 | J173: =VLOOKUP(P_liik, P_hinnad, P_sort+1, 0) -> 65 | K173: =P_hind * P_kogus -> 1690 | L173: =MONTH(P_kuupäev) -> 12
F174: lepp Total | I174: =SUBTOTAL(9,I168:I173) -> 212 | K174: =SUBTOTAL(9,K168:K173) -> 13066
B175: P010 | C175: 2013-01-09 | D175: Karu | E175: =VLOOKUP(P_ostja, o_tab, 2, 0) -> Lääne | F175: mänd | G175: 1 | H175: Hunt | I175: 55 | J175: =VLOOKUP(P_liik, P_hinnad, P_sort+1, 0) -> 75 | K175: =P_hind * P_kogus -> 4125 | L175: =MONTH(P_kuupäev) -> 1
B176: P010 | C176: 2013-01-09 | D176: Karu | E176: =VLOOKUP(P_ostja, o_tab, 2, 0) -> Lääne | F176: mänd | G176: 2 | H176: Hunt | I176: 39 | J176: =VLOOKUP(P_liik, P_hinnad, P_sort+1, 0) -> 68 | K176: =P_hind * P_kogus -> 2652 | L176: =MONTH(P_kuupäev) -> 1
B177: P031 | C177: 2013-02-02 | D177: Karu | E177: =VLOOKUP(P_ostja, o_tab, 2, 0) -> Lääne | F177: mänd | G177: 1 | H177: Jänes | I177: 53 | J177: =VLOOKUP(P_liik, P_hinnad, P_sort+1, 0) -> 75 | K177: =P_hind * P_kogus -> 3975 | L177: =MONTH(P_kuupäev) -> 2
B178: P213 | C178: 2013-09-21 | D178: Karu | E178: =VLOOKUP(P_ostja, o_tab, 2, 0) -> Lääne | F178: mänd | G178: 2 | H178: Rebane | I178: 59 | J178: =VLOOKUP(P_liik, P_hinnad, P_sort+1, 0) -> 68 | K178: =P_hind * P_kogus -> 4012 | L178: =MONTH(P_kuupäev) -> 9
B179: P213 | C179: 2013-09-21 | D179: Karu | E179: =VLOOKUP(P_ostja, o_tab, 2, 0) -> Lääne | F179: mänd | G179: 2 | H179: Rebane | I179: 24 | J179: =VLOOKUP(P_liik, P_hinnad, P_sort+1, 0) -> 68 | K179: =P_hind * P_kogus -> 1632 | L179: =MONTH(P_kuupäev) -> 9
F180: mänd Total | I180: =SUBTOTAL(9,I175:I179) -> 230 | K180: =SUBTOTAL(9,K175:K179) -> 16396
B181: P213 | C181: 2013-09-21 | D181: Karu | E181: =VLOOKUP(P_ostja, o_tab, 2, 0) -> Lääne | F181: saar | G181: 3 | H181: Rebane | I181: 59 | J181: =VLOOKUP(P_liik, P_hinnad, P_sort+1, 0) -> 68 | K181: =P_hind * P_kogus -> 4012 | L181: =MONTH(P_kuupäev) -> 9
B182: P228 | C182: 2013-10-07 | D182: Karu | E182: =VLOOKUP(P_ostja, o_tab, 2, 0) -> Lääne | F182: saar | G182: 1 | H182: Jänes | I182: 12 | J182: =VLOOKUP(P_liik, P_hinnad, P_sort+1, 0) -> 85 | K182: =P_hind * P_kogus -> 1020 | L182: =MONTH(P_kuupäev) -> 10
F183: saar Total | I183: =SUBTOTAL(9,I181:I182) -> 71 | K183: =SUBTOTAL(9,K181:K182) -> 5032
B184: P170 | C184: 2013-07-28 | D184: Karu | E184: =VLOOKUP(P_ostja, o_tab, 2, 0) -> Lääne | F184: tamm | G184: 1 | H184: Ilves | I184: 19 | J184: =VLOOKUP(P_liik, P_hinnad, P_sort+1, 0) -> 110 | K184: =P_hind * P_kogus -> 2090 | L184: =MONTH(P_kuupäev) -> 7
F185: tamm Total | I185: =SUBTOTAL(9,I184:I184) -> 19 | K185: =SUBTOTAL(9,K184:K184) -> 2090
B186: P004 | C186: 2013-01-04 | D186: Karu | E186: =VLOOKUP(P_ostja, o_tab, 2, 0) -> Lääne | F186: vaher | G186: 1 | H186: Siil | I186: 39 | J186: =VLOOKUP(P_liik, P_hinnad, P_sort+1, 0) -> 95 | K186: =P_hind * P_kogus -> 3705 | L186: =MONTH(P_kuupäev) -> 1
F187: vaher Total | I187: =SUBTOTAL(9,I186:I186) -> 39 | K187: =SUBTOTAL(9,K186:K186) -> 3705
D188: Karu Total | I188: =SUBTOTAL(9,I156:I186) -> 888 | K188: =SUBTOTAL(9,K156:K186) -> 61419
B189: P281 | C189: 2013-12-10 | D189: Kuusk | E189: =VLOOKUP(P_ostja, o_tab, 2, 0) -> Lääne | F189: haab | G189: 1 | H189: Karu | I189: 34 | J189: =VLOOKUP(P_liik, P_hinnad, P_sort+1, 0) -> 50 | K189: =P_hind * P_kogus -> 1700 | L189: =MONTH(P_kuupäev) -> 12
F190: haab Total | I190: =SUBTOTAL(9,I189:I189) -> 34 | K190: =SUBTOTAL(9,K189:K189) -> 1700
B191: P092 | C191: 2013-04-19 | D191: Kuusk | E191: =VLOOKUP(P_ostja, o_tab, 2, 0) -> Lääne | F191: kask | G191: 1 | H191: Jänes | I191: 51 | J191: =VLOOKUP(P_liik, P_hinnad, P_sort+1, 0) -> 70 | K191: =P_hind * P_kogus -> 3570 | L191: =MONTH(P_kuupäev) -> 4
B192: P227 | C192: 2013-10-07 | D192: Kuusk | E192: =VLOOKUP(P_ostja, o_tab, 2, 0) -> Lääne | F192: kask | G192: 1 | H192: Ilves | I192: 51 | J192: =VLOOKUP(P_liik, P_hinnad, P_sort+1, 0) -> 70 | K192: =P_hind * P_kogus -> 3570 | L192: =MONTH(P_kuupäev) -> 10
B193: P262 | C193: 2013-11-15 | D193: Kuusk | E193: =VLOOKUP(P_ostja, o_tab, 2, 0) -> Lääne | F193: kask | G193: 1 | H193: Siil | I193: 73 | J193: =VLOOKUP(P_liik, P_hinnad, P_sort+1, 0) -> 70 | K193: =P_hind * P_kogus -> 5110 | L193: =MONTH(P_kuupäev) -> 11
F194: kask Total | I194: =SUBTOTAL(9,I191:I193) -> 175 | K194: =SUBTOTAL(9,K191:K193) -> 12250
B195: P110 | C195: 2013-05-06 | D195: Kuusk | E195: =VLOOKUP(P_ostja, o_tab, 2, 0) -> Lääne | F195: küte | G195: 1 | H195: Rebane | I195: 12 | J195: =VLOOKUP(P_liik, P_hinnad, P_sort+1, 0) -> 47 | K195: =P_hind * P_kogus -> 564 | L195: =MONTH(P_kuupäev) -> 5
B196: P281 | C196: 2013-12-10 | D196: Kuusk | E196: =VLOOKUP(P_ostja, o_tab, 2, 0) -> Lääne | F196: küte | G196: 1 | H196: Karu | I196: 54 | J196: =VLOOKUP(P_liik, P_hinnad, P_sort+1, 0) -> 47 | K196: =P_hind * P_kogus -> 2538 | L196: =MONTH(P_kuupäev) -> 12
F197: küte Total | I197: =SUBTOTAL(9,I195:I196) -> 66 | K197: =SUBTOTAL(9,K195:K196) -> 3102
B198: P092 | C198: 2013-04-19 | D198: Kuusk | E198: =VLOOKUP(P_ostja, o_tab, 2, 0) -> Lääne | F198: lepp | G198: 2 | H198: Jänes | I198: 52 | J198: =VLOOKUP(P_liik, P_hinnad, P_sort+1, 0) -> 59 | K198: =P_hind * P_kogus -> 3068 | L198: =MONTH(P_kuupäev) -> 4
B199: P141 | C199: 2013-06-13 | D199: Kuusk | E199: =VLOOKUP(P_ostja, o_tab, 2, 0) -> Lääne | F199: lepp | G199: 1 | H199: Karu | I199: 46 | J199: =VLOOKUP(P_liik, P_hinnad, P_sort+1, 0) -> 65 | K199: =P_hind * P_kogus -> 2990 | L199: =MONTH(P_kuupäev) -> 6
F200: lepp Total | I200: =SUBTOTAL(9,I198:I199) -> 98 | K200: =SUBTOTAL(9,K198:K199) -> 6058
B201: P161 | C201: 2013-07-13 | D201: Kuusk | E201: =VLOOKUP(P_ostja, o_tab, 2, 0) -> Lääne | F201: mänd | G201: 1 | H201: Jänes | I201: 11 | J201: =VLOOKUP(P_liik, P_hinnad, P_sort+1, 0) -> 75 | K201: =P_hind * P_kogus -> 825 | L201: =MONTH(P_kuupäev) -> 7
B202: P281 | C202: 2013-12-10 | D202: Kuusk | E202: =VLOOKUP(P_ostja, o_tab, 2, 0) -> Lääne | F202: mänd | G202: 1 | H202: Karu | I202: 78 | J202: =VLOOKUP(P_liik, P_hinnad, P_sort+1, 0) -> 75 | K202: =P_hind * P_kogus -> 5850 | L202: =MONTH(P_kuupäev) -> 12
F203: mänd Total | I203: =SUBTOTAL(9,I201:I202) -> 89 | K203: =SUBTOTAL(9,K201:K202) -> 6675
B204: P090 | C204: 2013-04-17 | D204: Kuusk | E204: =VLOOKUP(P_ostja, o_tab, 2, 0) -> Lääne | F204: saar | G204: 3 | H204: Rebane | I204: 41 | J204: =VLOOKUP(P_liik, P_hinnad, P_sort+1, 0) -> 68 | K204: =P_hind * P_kogus -> 2788 | L204: =MONTH(P_kuupäev) -> 4
... 445 more rows

Sheet Sort
E1: veeb | F1: klipp Sortimine | J1: Harjutustabelid
J2: Töötajad | K2: Puidu müük
I4: Arvutite müükide arvestus
I6: Kuupäev | J6: Linn | K6: Arvuti | L6: Arv | M6: Hind | N6: Maksumus
I7: 2013-01-02 | J7: Tallinn | K7: Frodo | L7: 2 | M7: =VLOOKUP(Arvuti, Arvutid, 6, 0) -> 870 | N7: =Hind * Arv -> 1740
I8: 2013-01-02 | J8: Valga | K8: Balrog | L8: 1 | M8: 419 | N8: 419
I9: 2013-01-03 | J9: Tallinn | K9: Aragorn | L9: 3 | M9: 499 | N9: 1497
I10: 2013-01-03 | J10: Tallinn | K10: Balrog | L10: 3 | M10: 419 | N10: 1257
I11: 2013-01-03 | J11: Võru | K11: Gandalf | L11: 2 | M11: 849 | N11: 1698
I12: 2013-01-04 | J12: Tallinn | K12: Eldar | L12: 3 | M12: 465 | N12: 1395
I13: 2013-01-04 | J13: Tartu | K13: Balrog | L13: 5 | M13: 419 | N13: 2095
I14: 2013-01-07 | J14: Pärnu | K14: Eldar | L14: 3 | M14: 465 | N14: 1395
I15: 2013-01-07 | J15: Tallinn | K15: Faram | L15: 1 | M15: 599 | N15: 599
I16: 2013-01-07 | J16: Valga | K16: Balrog | L16: 6 | M16: 419 | N16: 2514
I17: 2013-01-07 | J17: Valga | K17: Frodo | L17: 1 | M17: 870 | N17: 870
I18: 2013-01-09 | J18: Tallinn | K18: Grimbold | L18: 6 | M18: 1149 | N18: 6894
I19: 2013-01-10 | J19: Pärnu | K19: Elend | L19: 1 | M19: 920 | N19: 920
I20: 2013-01-10 | J20: Pärnu | K20: Rohan | L20: 4 | M20: 340 | N20: 1360
I21: 2013-01-10 | J21: Tartu | K21: Sauron | L21: 2 | M21: 339 | N21: 678
I22: 2013-01-11 | J22: Tallinn | K22: Marvin | L22: 1 | M22: 370 | N22: 370
I23: 2013-01-11 | J23: Tartu | K23: Balrog | L23: 2 | M23: 419 | N23: 838
I24: 2013-01-11 | J24: Valga | K24: Aragorn | L24: 1 | M24: 499 | N24: 499
I25: 2013-01-14 | J25: Pärnu | K25: Gandalf | L25: 3 | M25: 849 | N25: 2547
I26: 2013-01-14 | J26: Tartu | K26: Frodo | L26: 4 | M26: 870 | N26: 3480
I27: 2013-01-14 | J27: Valga | K27: Kalvar | L27: 2 | M27: 699 | N27: 1398
I28: 2013-01-16 | J28: Tallinn | K28: Arven | L28: 5 | M28: 369 | N28: 1845
I29: 2013-01-17 | J29: Tallinn | K29: Kalvar | L29: 7 | M29: 699 | N29: 4893
I30: 2013-01-17 | J30: Tartu | K30: Aragorn | L30: 3 | M30: 499 | N30: 1497
I31: 2013-01-18 | J31: Pärnu | K31: Eldar | L31: 1 | M31: 465 | N31: 465
I32: 2013-01-18 | J32: Tallinn | K32: Aragorn | L32: 1 | M32: 499 | N32: 499
I33: 2013-01-19 | J33: Tallinn | K33: Faram | L33: 3 | M33: 599 | N33: 1797
I34: 2013-01-19 | J34: Tartu | K34: Kalvar | L34: 1 | M34: 699 | N34: 699
I35: 2013-01-19 | J35: Võru | K35: Elend | L35: 5 | M35: 920 | N35: 4600
I36: 2013-01-20 | J36: Tallinn | K36: Elend | L36: 2 | M36: 920 | N36: 1840
I37: 2013-01-20 | J37: Võru | K37: Sauron | L37: 3 | M37: 339 | N37: 1017
I38: 2013-01-21 | J38: Pärnu | K38: Arven | L38: 1 | M38: 369 | N38: 369
I39: 2013-01-25 | J39: Võru | K39: Sauron | L39: 1 | M39: 339 | N39: 339
I40: 2013-01-26 | J40: Pärnu | K40: Gandalf | L40: 2 | M40: 849 | N40: 1698

Sheet Päringud
E1: veeb

Sheet Filter
E1: veeb | F1: Klipp Autofilter | I1: Harjutustabelid
I2: töötajad | J2: puidu müük
B3: Filter - harilik filter ehk autofilter | N3: NB! Subtotal
I4: Arvutite müükide arvestus | L4: =SUBTOTAL(9, L7:L40) -> 90 | M4: =SUBTOTAL(1, M7:M40) -> 611.8529412 | N4: =SUBTOTAL(9, N7:N40) -> 54875
I6: Kuupäev | J6: Linn | K6: Arvuti | L6: Arv | M6: Hind | N6: Maksumus
I7: 2013-01-03 | J7: Tallinn | K7: Aragorn | L7: 2 | M7: =VLOOKUP(Arvuti, Arvutid, 6, 0) -> 499 | N7: =Hind*Arv -> 998
I8: 2013-01-03 | J8: Tallinn | K8: Balrog | L8: 3 | M8: 419 | N8: 1257
I9: 2013-01-09 | J9: Tallinn | K9: Grimbold | L9: 6 | M9: 1149 | N9: 6894
I10: 2013-01-04 | J10: Tallinn | K10: Eldar | L10: 3 | M10: 465 | N10: 1395
I11: 2013-01-07 | J11: Tallinn | K11: Faram | L11: 1 | M11: 599 | N11: 599
I12: 2013-01-02 | J12: Tallinn | K12: Frodo | L12: 2 | M12: 870 | N12: 1740
I13: 2013-01-11 | J13: Tallinn | K13: Frodo | L13: 1 | M13: 870 | N13: 870
I14: 2013-01-16 | J14: Tallinn | K14: Arven | L14: 5 | M14: 369 | N14: 1845
I15: 2013-01-07 | J15: Pärnu | K15: Eldar | L15: 3 | M15: 465 | N15: 1395
I16: 2013-01-17 | J16: Tallinn | K16: Balrog | L16: 7 | M16: 419 | N16: 2933
I17: 2013-01-26 | J17: Pärnu | K17: Gandalf | L17: 2 | M17: 849 | N17: 1698
I18: 2013-01-18 | J18: Tallinn | K18: Aragorn | L18: 1 | M18: 499 | N18: 499
I19: 2013-01-10 | J19: Pärnu | K19: Elend | L19: 1 | M19: 920 | N19: 920
I20: 2013-01-19 | J20: Tallinn | K20: Frodo | L20: 3 | M20: 870 | N20: 2610
I21: 2013-01-20 | J21: Tallinn | K21: Elend | L21: 2 | M21: 920 | N21: 1840
I22: 2013-01-10 | J22: Tartu | K22: Sauron | L22: 2 | M22: 339 | N22: 678
I23: 2013-01-11 | J23: Tartu | K23: Balrog | L23: 2 | M23: 419 | N23: 838
I24: 2013-01-14 | J24: Tartu | K24: Frodo | L24: 4 | M24: 870 | N24: 3480
I25: 2013-01-02 | J25: Valga | K25: Balrog | L25: 1 | M25: 419 | N25: 419
I26: 2013-01-14 | J26: Pärnu | K26: Gandalf | L26: 3 | M26: 849 | N26: 2547
I27: 2013-01-11 | J27: Valga | K27: Aragorn | L27: 1 | M27: 499 | N27: 499
I28: 2013-01-17 | J28: Tartu | K28: Aragorn | L28: 3 | M28: 499 | N28: 1497
I29: 2013-01-14 | J29: Valga | K29: Kalvar | L29: 2 | M29: 699 | N29: 1398
I30: 2013-01-07 | J30: Valga | K30: Balrog | L30: 6 | M30: 419 | N30: 2514
I31: 2013-01-07 | J31: Valga | K31: Frodo | L31: 1 | M31: 870 | N31: 870
I32: 2013-01-18 | J32: Pärnu | K32: Eldar | L32: 1 | M32: =VLOOKUP(Arvuti, Arvutid, 6, 0) -> 465 | N32: =Hind*Arv -> 465
I33: 2013-01-10 | J33: Pärnu | K33: Rohan | L33: 4 | M33: 340 | N33: 1360
I34: 2013-01-19 | J34: Tartu | K34: Kalvar | L34: 1 | M34: 699 | N34: 699
I35: 2013-01-03 | J35: Võru | K35: Gandalf | L35: 2 | M35: 849 | N35: 1698
I36: 2013-01-19 | J36: Võru | K36: Elend | L36: 5 | M36: 920 | N36: 4600
I37: 2013-01-20 | J37: Võru | K37: Sauron | L37: 3 | M37: 339 | N37: 1017
I38: 2013-01-21 | J38: Pärnu | K38: Arven | L38: 1 | M38: 369 | N38: 369
I39: 2013-01-25 | J39: Võru | K39: Sauron | L39: 1 | M39: 339 | N39: 339
I40: 2013-01-04 | J40: Tartu | K40: Balrog | L40: 5 | M40: 419 | N40: 2095

Sheet Aren_Filter
E1: veeb | F1: klipp Arendatud filter 1 | J1: Harjutustabelid:
D2: klipp Arendatud filter 2 | F2: klipp Arendatud filter 3 | J2: Töötajad | K2: Puidu müük
B5: Arvutite müükide arvestus
B7: Linn | D7: Linn | E7: Arvuti | G7: Maksumus
B8: Pärnu | D8: Tallinn | E8: Frodo | G8: >2000
B10: Linn | D10: Linn | E10: Arvuti | F10: Arv
B11: Tallinn | D11: Tallinn | E11: Balrog | F11: >1
B12: Tartu | D12: Tartu | E12: Balrog | F12: >1
B13: Võru
D14: Arvuti | E14: Kuupäev | F14: Kuupäev
B15: AM_AF | D15: Aragorn | E15: >=10.01.13 | F15: <=20.01.13
B17: Kuupäev | C17: Linn | D17: Arvuti | E17: Arv | F17: Hind | G17: Maksumus
B18: 2013-01-02 | C18: Tallinn | D18: Frodo | E18: 3 | F18: =VLOOKUP(Arvuti, Arvutid, 6, 0) -> 870 | G18: =Hind*Arv -> 2610
B19: 2013-01-02 | C19: Valga | D19: Balrog | E19: 1 | F19: 419 | G19: 419
B20: 2013-01-03 | C20: Võru | D20: Gandalf | E20: 2 | F20: 849 | G20: 1698
B21: 2013-01-03 | C21: Tallinn | D21: Balrog | E21: 3 | F21: 419 | G21: 1257
B22: 2013-01-03 | C22: Tallinn | D22: Aragorn | E22: 2 | F22: 499 | G22: 998
B23: 2013-01-04 | C23: Tartu | D23: Balrog | E23: 5 | F23: 419 | G23: 2095
B24: 2013-01-04 | C24: Tallinn | D24: Eldar | E24: 3 | F24: 465 | G24: 1395
B25: 2013-01-07 | C25: Valga | D25: Balrog | E25: 6 | F25: 419 | G25: 2514
B26: 2013-01-07 | C26: Pärnu | D26: Balrog | E26: 3 | F26: 419 | G26: 1257
B27: 2013-01-07 | C27: Valga | D27: Frodo | E27: 1 | F27: 870 | G27: 870
B28: 2013-01-07 | C28: Tallinn | D28: Frodo | E28: 1 | F28: 870 | G28: 870
B29: 2013-01-09 | C29: Tallinn | D29: Grimbold | E29: 6 | F29: 1149 | G29: 6894
B30: 2013-01-10 | C30: Pärnu | D30: Rohan | E30: 4 | F30: 340 | G30: 1360
B31: 2013-01-10 | C31: Pärnu | D31: Elend | E31: 1 | F31: 920 | G31: 920
B32: 2013-01-10 | C32: Tartu | D32: Sauron | E32: 2 | F32: 339 | G32: 678
B33: 2013-01-11 | C33: Tartu | D33: Balrog | E33: 2 | F33: 419 | G33: 838
B34: 2013-01-11 | C34: Tallinn | D34: Marvin | E34: 1 | F34: 370 | G34: 370
B35: 2013-01-11 | C35: Valga | D35: Aragorn | E35: 1 | F35: 499 | G35: 499
B36: 2013-01-14 | C36: Tartu | D36: Frodo | E36: 4 | F36: 870 | G36: 3480
B37: 2013-01-14 | C37: Pärnu | D37: Gandalf | E37: 3 | F37: 849 | G37: 2547
B38: 2013-01-14 | C38: Valga | D38: Kalvar | E38: 2 | F38: 699 | G38: 1398
B39: 2013-01-16 | C39: Tallinn | D39: Frodo | E39: 5 | F39: 870 | G39: 4350
B40: 2013-01-17 | C40: Tallinn | D40: Kalvar | E40: 7 | F40: 699 | G40: 4893
B41: 2013-01-17 | C41: Tartu | D41: Aragorn | E41: 3 | F41: 499 | G41: 1497
B42: 2013-01-18 | C42: Tallinn | D42: Aragorn | E42: 1 | F42: 499 | G42: 499
B43: 2013-01-18 | C43: Pärnu | D43: Eldar | E43: 1 | F43: 465 | G43: 465
B44: 2013-01-19 | C44: Võru | D44: Elend | E44: 5 | F44: 920 | G44: 4600
B45: 2013-01-19 | C45: Tallinn | D45: Faram | E45: 3 | F45: 599 | G45: 1797
B46: 2013-01-19 | C46: Tartu | D46: Kalvar | E46: 1 | F46: 699 | G46: 699
B47: 2013-01-20 | C47: Tallinn | D47: Elend | E47: 2 | F47: 920 | G47: 1840
B48: 2013-01-20 | C48: Võru | D48: Sauron | E48: 3 | F48: 339 | G48: 1017
B49: 2013-01-21 | C49: Pärnu | D49: Arven | E49: 1 | F49: 369 | G49: 369
B50: 2013-01-25 | C50: Võru | D50: Sauron | E50: 1 | F50: 339 | G50: 339
B51: 2013-01-26 | C51: Pärnu | D51: Gandalf | E51: 2 | F51: 849 | G51: 1698

Sheet Filter_PM_D
B2: Demo. Demo. Demo
B3: Puidu müük. Väljavõtete tegemine maakondade ja puidu liikide lõikes
B5: Maakond | C5: puidu liik | J5: =DSUM(PM, "P_kogus", Kriteerium) -> 3982 | K5: =DSUM(PM, "P_maks",Kriteerium) -> 247548
B6: P_maa | C6: P_liik
B7: Viljandi
E9: Kokku: | F9: =SUM(F13:F203) -> 1991 | G9: =SUM(G13:G203) -> 123774
B11: Kuupäev | C11: Arve | D11: Müüja | E11: Ostja | F11: Kogus | G11: Maksumus
B12: P_kuupäev | C12: P_arve | D12: P_müüja | E12: P_ostja | F12: P_kogus | G12: P_maks
B13: 2013-01-11 | C13: P011 | D13: Karu | E13: Lepp | F13: 24 | G13: 1920
B14: 2013-01-11 | C14: P011 | D14: Jänes | E14: Lepp | F14: 16 | G14: 1216
B15: 2013-01-25 | C15: P022 | D15: Karu | E15: Kuusik | F15: 23 | G15: 1610
B16: 2013-01-25 | C16: P022 | D16: Karu | E16: Kuusik | F16: 16 | G16: 1120
B17: 2013-01-25 | C17: P022 | D17: Karu | E17: Kuusik | F17: 20 | G17: 840
B18: 2013-01-25 | C18: P023 | D18: Jänes | E18: Kuusik | F18: 24 | G18: 1920
B19: 2013-01-27 | C19: P024 | D19: Karu | E19: Lepp | F19: 51 | G19: 5049
B20: 2013-01-27 | C20: P025 | D20: Siil | E20: Lepp | F20: 15 | G20: 1200
B21: 2013-02-13 | C21: P036 | D21: Karu | E21: Luik | F21: 72 | G21: 4608
B22: 2013-02-13 | C22: P036 | D22: Ilves | E22: Luik | F22: 53 | G22: 3445
B23: 2013-02-17 | C23: P037 | D23: Jänes | E23: Kuusik | F23: 32 | G23: 1440
B24: 2013-02-27 | C24: P047 | D24: Hunt | E24: Kuusik | F24: 28 | G24: 1176
B25: 2013-03-02 | C25: P053 | D25: Karu | E25: Lepp | F25: 27 | G25: 1350
B26: 2013-03-02 | C26: P053 | D26: Hunt | E26: Lepp | F26: 11 | G26: 1045
B27: 2013-03-05 | C27: P054 | D27: Karu | E27: Lepp | F27: 177 | G27: 7434
B28: 2013-03-05 | C28: P054 | D28: Karu | E28: Lepp | F28: 37 | G28: 2183
B29: 2013-03-15 | C29: P061 | D29: Siil | E29: Lepp | F29: 23 | G29: 1472
B30: 2013-03-26 | C30: P072 | D30: Ilves | E30: Lepp | F30: 8 | G30: 680
B31: 2013-04-02 | C31: P075 | D31: Ilves | E31: Lepp | F31: 22 | G31: 1386
B32: 2013-04-02 | C32: P075 | D32: Ilves | E32: Lepp | F32: 35 | G32: 2975
B33: 2013-04-25 | C33: P099 | D33: Hunt | E33: Kuusik | F33: 31 | G33: 2170
B34: 2013-04-25 | C34: P099 | D34: Hunt | E34: Kuusik | F34: 36 | G34: 2340
B35: 2013-05-03 | C35: P106 | D35: Ilves | E35: Lepp | F35: 45 | G35: 1800
B36: 2013-05-03 | C36: P106 | D36: Ilves | E36: Lepp | F36: 31 | G36: 1302
B37: 2013-05-03 | C37: P107 | D37: Rebane | E37: Lepp | F37: 17 | G37: 1020
B38: 2013-05-15 | C38: P119 | D38: Karu | E38: Lepp | F38: 19 | G38: 1197
B39: 2013-05-15 | C39: P120 | D39: Siil | E39: Luik | F39: 33 | G39: 1716
B40: 2013-05-18 | C40: P124 | D40: Põder | E40: Luik | F40: 32 | G40: 3520
B41: 2013-05-19 | C41: P125 | D41: Põder | E41: Lepp | F41: 65 | G41: 2600
B42: 2013-06-04 | C42: P134 | D42: Siil | E42: Lepp | F42: 31 | G42: 2480
B43: 2013-06-10 | C43: P138 | D43: Hunt | E43: Lepp | F43: 54 | G43: 4320
B44: 2013-06-10 | C44: P138 | D44: Hunt | E44: Lepp | F44: 25 | G44: 1900
B45: 2013-07-06 | C45: P154 | D45: Rebane | E45: Luik | F45: 11 | G45: 968
B46: 2013-07-09 | C46: P157 | D46: Hunt | E46: Kuusik | F46: 11 | G46: 495
B47: 2013-07-09 | C47: P157 | D47: Hunt | E47: Kuusik | F47: 25 | G47: 2000
B48: 2013-08-01 | C48: P174 | D48: Hunt | E48: Luik | F48: 12 | G48: 960
B49: 2013-08-21 | C49: P188 | D49: Hunt | E49: Luik | F49: 61 | G49: 4392
B50: 2013-08-22 | C50: P189 | D50: Rebane | E50: Kuusik | F50: 41 | G50: 2132
B51: 2013-08-22 | C51: P189 | D51: Rebane | E51: Kuusik | F51: 10 | G51: 650
B52: 2013-08-24 | C52: P192 | D52: Põder | E52: Kuusik | F52: 36 | G52: 3564
B53: 2013-09-04 | C53: P203 | D53: Põder | E53: Lepp | F53: 13 | G53: 975
B54: 2013-09-12 | C54: P206 | D54: Ilves | E54: Kuusik | F54: 70 | G54: 3150
B55: 2013-09-12 | C55: P206 | D55: Ilves | E55: Kuusik | F55: 32 | G55: 2240
B56: 2013-09-22 | C56: P215 | D56: Ilves | E56: Lepp | F56: 79 | G56: 4977
B57: 2013-09-22 | C57: P215 | D57: Ilves | E57: Lepp | F57: 47 | G57: 3290
B58: 2013-10-05 | C58: P225 | D58: Siil | E58: Lepp | F58: 29 | G58: 1711
B59: 2013-10-10 | C59: P231 | D59: Karu | E59: Luik | F59: 46 | G59: 2070
B60: 2013-10-10 | C60: P231 | D60: Karu | E60: Luik | F60: 71 | G60: 2982
B61: 2013-11-18 | C61: P264 | D61: Ilves | E61: Kuusik | F61: 26 | G61: 1040
B62: 2013-11-18 | C62: P264 | D62: Ilves | E62: Kuusik | F62: 32 | G62: 2400
B63: 2013-11-28 | C63: P270 | D63: Rebane | E63: Kuusik | F63: 27 | G63: 1404
B64: 2013-12-05 | C64: P278 | D64: Jänes | E64: Lepp | F64: 55 | G64: 3520
B65: 2013-12-27 | C65: P292 | D65: Hunt | E65: Lepp | F65: 42 | G65: 2100
B66: 2013-12-27 | C66: P292 | D66: Hunt | E66: Lepp | F66: 65 | G66: 4875
B67: 2013-12-30 | C67: P295 | D67: Karu | E67: Lepp | F67: 17 | G67: 1445

Sheet Kokku
E1: veeb

Sheet Vahekokku
E1: veeb | F1: Klipp Vahekokkuvõtted | J1: Harjutustabelid
J2: töötajad | K2: puidu müük
B4: Arvutite müükide arvestus
B6: Kuupäev | C6: Linn | D6: Arvuti | E6: Arv | F6: Hind | G6: Maksumus
B7: 2013-01-07 | C7: Pärnu | D7: Eldar | E7: 3 | F7: =VLOOKUP(Arvuti, Arvutid, 6, 0) -> 465 | G7: =Hind*Arv -> 1395
B8: 2013-01-10 | C8: Pärnu | D8: Elend | E8: 1 | F8: 920 | G8: 920
B9: 2013-01-10 | C9: Pärnu | D9: Rohan | E9: 4 | F9: 340 | G9: 1360
B10: 2013-01-14 | C10: Pärnu | D10: Gandalf | E10: 3 | F10: 849 | G10: 2547
B11: 2013-01-18 | C11: Pärnu | D11: Eldar | E11: 1 | F11: 465 | G11: 465
B12: 2013-01-21 | C12: Pärnu | D12: Arven | E12: 2 | F12: 369 | G12: 738
B13: 2013-01-26 | C13: Pärnu | D13: Gandalf | E13: 2 | F13: 849 | G13: 1698
B14: 2013-01-02 | C14: Tallinn | D14: Frodo | E14: 2 | F14: 870 | G14: 1740
B15: 2013-01-03 | C15: Tallinn | D15: Aragorn | E15: 2 | F15: 499 | G15: 998
B16: 2013-01-03 | C16: Tallinn | D16: Balrog | E16: 3 | F16: 419 | G16: 1257
B17: 2013-01-04 | C17: Tallinn | D17: Eldar | E17: 3 | F17: 465 | G17: 1395
B18: 2013-01-07 | C18: Tallinn | D18: Faram | E18: 1 | F18: 599 | G18: 599
B19: 2013-01-09 | C19: Tallinn | D19: Grimbold | E19: 6 | F19: 1149 | G19: 6894
B20: 2013-01-11 | C20: Tallinn | D20: Frodo | E20: 1 | F20: 870 | G20: 870
B21: 2013-01-16 | C21: Tallinn | D21: Arven | E21: 5 | F21: 369 | G21: 1845
B22: 2013-01-17 | C22: Tallinn | D22: Balrog | E22: 7 | F22: 419 | G22: 2933
B23: 2013-01-18 | C23: Tallinn | D23: Aragorn | E23: 1 | F23: 499 | G23: 499
B24: 2013-01-19 | C24: Tallinn | D24: Frodo | E24: 3 | F24: 870 | G24: 2610
B25: 2013-01-20 | C25: Tallinn | D25: Elend | E25: 2 | F25: 920 | G25: 1840
B26: 2013-01-04 | C26: Tartu | D26: Balrog | E26: 5 | F26: 419 | G26: 2095
B27: 2013-01-10 | C27: Tartu | D27: Sauron | E27: 2 | F27: 339 | G27: 678
B28: 2013-01-11 | C28: Tartu | D28: Balrog | E28: 2 | F28: 419 | G28: 838
B29: 2013-01-14 | C29: Tartu | D29: Frodo | E29: 4 | F29: 870 | G29: 3480
B30: 2013-01-17 | C30: Tartu | D30: Aragorn | E30: 3 | F30: 499 | G30: 1497
B31: 2013-01-19 | C31: Tartu | D31: Kalvar | E31: 1 | F31: 699 | G31: 699
B32: 2013-01-02 | C32: Valga | D32: Balrog | E32: 1 | F32: 419 | G32: 419
B33: 2013-01-07 | C33: Valga | D33: Balrog | E33: 6 | F33: 419 | G33: 2514
B34: 2013-01-07 | C34: Valga | D34: Frodo | E34: 1 | F34: 870 | G34: 870
B35: 2013-01-11 | C35: Valga | D35: Aragorn | E35: 1 | F35: 499 | G35: 499
B36: 2013-01-14 | C36: Valga | D36: Kalvar | E36: 2 | F36: 699 | G36: 1398
B37: 2013-01-03 | C37: Võru | D37: Gandalf | E37: 2 | F37: 849 | G37: 1698
B38: 2013-01-19 | C38: Võru | D38: Elend | E38: 5 | F38: 920 | G38: 4600
B39: 2013-01-20 | C39: Võru | D39: Sauron | E39: 3 | F39: 339 | G39: 1017
B40: 2013-01-25 | C40: Võru | D40: Sauron | E40: 1 | F40: 339 | G40: 339

Sheet Risttabelid
E1: veeb | F1: Klipp Risttabelid | J1: Harjutustabelid:
J2: Töötajad | K2: Puidu müük
I4: Arvutite müükide arvestus
I6: Kuupäev | J6: Linn | K6: Arvuti | L6: Arv | M6: Hind | N6: Maksumus
I7: 2013-01-02 | J7: Valga | K7: Balrog | L7: 2 | M7: =VLOOKUP(Arvuti, Arvutid, 6, 0) -> 419 | N7: =Hind*Arv -> 838
I8: 2013-01-03 | J8: Võru | K8: Gandalf | L8: 3 | M8: =VLOOKUP(Arvuti, Arvutid, 6, 0) -> 849 | N8: 2547
I9: 2013-01-03 | J9: Tallinn | K9: Aragorn | L9: 2 | M9: 499 | N9: 998
I10: 2013-01-03 | J10: Tallinn | K10: Balrog | L10: 3 | M10: 419 | N10: 1257
I11: 2013-01-09 | J11: Tallinn | K11: Grimbold | L11: 6 | M11: 1149 | N11: 6894
I12: 2013-01-19 | J12: Võru | K12: Elend | L12: 5 | M12: 920 | N12: 4600
I13: 2013-01-04 | J13: Tallinn | K13: Eldar | L13: 3 | M13: 465 | N13: 1395
I14: 2013-01-10 | J14: Tartu | K14: Sauron | L14: 2 | M14: 339 | N14: 678
I15: 2013-01-07 | J15: Pärnu | K15: Eldar | L15: 3 | M15: 465 | N15: 1395
I16: 2013-01-07 | J16: Tallinn | K16: Faram | L16: 1 | M16: 599 | N16: 599
I17: 2013-01-26 | J17: Pärnu | K17: Gandalf | L17: 2 | M17: 849 | N17: 1698
I18: 2013-01-11 | J18: Tartu | K18: Balrog | L18: 2 | M18: 419 | N18: 838
I19: 2013-01-10 | J19: Pärnu | K19: Elend | L19: 1 | M19: 920 | N19: 920
I20: 2013-01-02 | J20: Tallinn | K20: Frodo | L20: 2 | M20: 870 | N20: 1740
I21: 2013-01-11 | J21: Tallinn | K21: Frodo | L21: 1 | M21: 870 | N21: 870
I22: 2013-01-11 | J22: Valga | K22: Aragorn | L22: 1 | M22: 499 | N22: 499
I23: 2013-01-14 | J23: Tartu | K23: Frodo | L23: 4 | M23: 870 | N23: 3480
I24: 2013-01-16 | J24: Tallinn | K24: Arven | L24: 5 | M24: 369 | N24: 1845
I25: 2013-01-17 | J25: Tallinn | K25: Balrog | L25: 7 | M25: 419 | N25: 2933
I26: 2013-01-14 | J26: Pärnu | K26: Gandalf | L26: 3 | M26: 849 | N26: 2547
I27: 2013-01-14 | J27: Valga | K27: Kalvar | L27: 2 | M27: 699 | N27: 1398
I28: 2013-01-17 | J28: Tartu | K28: Aragorn | L28: 3 | M28: 499 | N28: 1497
I29: 2013-01-18 | J29: Tallinn | K29: Aragorn | L29: 1 | M29: 499 | N29: 499
I30: 2013-01-07 | J30: Valga | K30: Balrog | L30: 6 | M30: 419 | N30: 2514
I31: 2013-01-19 | J31: Tallinn | K31: Frodo | L31: 3 | M31: 870 | N31: 2610
I32: 2013-01-18 | J32: Pärnu | K32: Eldar | L32: 1 | M32: 465 | N32: 465
I33: 2013-01-10 | J33: Pärnu | K33: Rohan | L33: 4 | M33: 340 | N33: 1360
I34: 2013-01-19 | J34: Tartu | K34: Kalvar | L34: 1 | M34: 699 | N34: 699
I35: 2013-01-20 | J35: Tallinn | K35: Elend | L35: 2 | M35: 920 | N35: 1840
I36: 2013-01-07 | J36: Valga | K36: Frodo | L36: 1 | M36: 870 | N36: 870
I37: 2013-01-20 | J37: Võru | K37: Sauron | L37: 3 | M37: 339 | N37: 1017
I38: 2013-01-21 | J38: Pärnu | K38: Arven | L38: 1 | M38: 369 | N38: 369
I39: 2013-01-25 | J39: Võru | K39: Sauron | L39: 1 | M39: 339 | N39: 339
I40: 2013-01-04 | J40: Tartu | K40: Balrog | L40: 5 | M40: 419 | N40: 2095

Sheet SumIF
E1: veeb | F1: Klipp SumIF | J1: Harjutustabel | L1: Puidu müük
B3: Funktsioonid COUNTIF ja SUMIF | J3: Arvutite müükide arvestus | N3: AM_SIF
J5: A_Kuupäev | K5: A_Linn | L5: A_Arvuti | M5: A_Arv | N5: A_Hind | O5: A_Maksumus
J6: 2013-01-02 | K6: Tallinn | L6: Frodo | M6: 2 | N6: =VLOOKUP(A_Arvuti, Arvutid, 6, 0) -> 870 | O6: =A_Hind*A_Arv -> 1740
J7: 2013-01-02 | K7: Valga | L7: Balrog | M7: 1 | N7: 419 | O7: 419
J8: 2013-01-03 | K8: Tallinn | L8: Aragorn | M8: 2 | N8: 499 | O8: 998
J9: 2013-01-03 | K9: Tallinn | L9: Balrog | M9: 3 | N9: 419 | O9: 1257
J10: 2013-01-03 | K10: Võru | L10: Gandalf | M10: 2 | N10: 849 | O10: 1698
J11: 2013-01-04 | K11: Tallinn | L11: Eldar | M11: 3 | N11: 465 | O11: 1395
J12: 2013-01-04 | K12: Tartu | L12: Balrog | M12: 5 | N12: 419 | O12: 2095
J13: 2013-01-07 | K13: Pärnu | L13: Eldar | M13: 3 | N13: 465 | O13: 1395
J14: 2013-01-07 | K14: Tallinn | L14: Faram | M14: 1 | N14: 599 | O14: 599
J15: 2013-01-07 | K15: Valga | L15: Balrog | M15: 6 | N15: 419 | O15: 2514
J16: 2013-01-07 | K16: Valga | L16: Frodo | M16: 1 | N16: 870 | O16: 870
J17: 2013-01-09 | K17: Tallinn | L17: Grimbold | M17: 6 | N17: 1149 | O17: 6894
J18: 2013-01-10 | K18: Pärnu | L18: Elend | M18: 1 | N18: 920 | O18: 920
J19: 2013-01-10 | K19: Pärnu | L19: Rohan | M19: 4 | N19: 340 | O19: 1360
J20: 2013-01-10 | K20: Tartu | L20: Sauron | M20: 2 | N20: 339 | O20: 678
J21: 2013-01-11 | K21: Tallinn | L21: Frodo | M21: 1 | N21: 870 | O21: 870
B22: Arvud | C22: arv | J22: 2013-01-11 | K22: Tartu | L22: Balrog | M22: 2 | N22: 419 | O22: 838
B23: 23 | C23: 21 | E23: Mitu korda esineb loetelus arv 13 | J23: 2013-01-11 | K23: Valga | L23: Aragorn | M23: 1 | N23: 499 | O23: 499
B24: -45 | E24: Mitu korda esineb loetelus lahtris arv olev arv | J24: 2013-01-14 | K24: Pärnu | L24: Gandalf | M24: 3 | N24: 849 | O24: 2547
B25: 13 | E25: Positiivsete arvude summa | J25: 2013-01-14 | K25: Tartu | L25: Frodo | M25: 4 | N25: 870 | O25: 3480
B26: 18 | E26: Positiivsete arvude arv | J26: 2013-01-14 | K26: Valga | L26: Kalvar | M26: 2 | N26: 699 | O26: 1398
B27: 21 | E27: Positiivsete arvude aritmeetiline keskmine | J27: 2013-01-16 | K27: Tallinn | L27: Arven | M27: 5 | N27: 369 | O27: 1845
B28: 13 | E28: Mitu korda esineb loetelus arv 21 | J28: 2013-01-17 | K28: Tallinn | L28: Balrog | M28: 7 | N28: 419 | O28: 2933
B29: -16 | E29: Negatiivsete arvude summa | J29: 2013-01-17 | K29: Tartu | L29: Aragorn | M29: 3 | N29: 499 | O29: 1497
B30: 21 | E30: Negatiivsete arvude arv | J30: 2013-01-18 | K30: Pärnu | L30: Eldar | M30: 1 | N30: 465 | O30: 465
B31: 13 | E31: Negatiivsete arvude aritmeetiline keskmine | J31: 2013-01-18 | K31: Tallinn | L31: Aragorn | M31: 1 | N31: 499 | O31: 499
J32: 2013-01-19 | K32: Tallinn | L32: Frodo | M32: 3 | N32: 870 | O32: 2610
J33: 2013-01-19 | K33: Tartu | L33: Kalvar | M33: 1 | N33: 699 | O33: 699
J34: 2013-01-19 | K34: Võru | L34: Elend | M34: 5 | N34: 920 | O34: 4600
J35: 2013-01-20 | K35: Tallinn | L35: Elend | M35: 2 | N35: 920 | O35: 1840
J36: 2013-01-20 | K36: Võru | L36: Sauron | M36: 3 | N36: 339 | O36: 1017
J37: 2013-01-21 | K37: Pärnu | L37: Arven | M37: 1 | N37: 369 | O37: 369
J38: 2013-01-25 | K38: Võru | L38: Sauron | M38: 1 | N38: 339 | O38: 339
J39: 2013-01-26 | K39: Pärnu | L39: Gandalf | M39: 2 | N39: 849 | O39: 1698
M41: =SUM(M6:M40) -> 90 | O41: 54875

Sheet D_Fumkts
I5: Müükide arvestus | L5: =SUBTOTAL(9, L8:L42) -> 90 | N5: =SUBTOTAL(9, N8:N42) -> 54875
I7: Kuupäev | J7: Linn | K7: Arvuti | L7: Arv | M7: Hind | N7: Maksumus
I8: 2013-01-02 | J8: Tallinn | K8: Frodo | L8: 2 | M8: =VLOOKUP(Arvuti, Arvutid, 6, 0) -> 870 | N8: =Hind*Arv -> 1740
I9: 2013-01-02 | J9: Valga | K9: Balrog | L9: 1 | M9: 419 | N9: 419
I10: 2013-01-03 | J10: Tallinn | K10: Aragorn | L10: 2 | M10: 499 | N10: 998
I11: 2013-01-03 | J11: Tallinn | K11: Balrog | L11: 3 | M11: 419 | N11: 1257
I12: 2013-01-03 | J12: Võru | K12: Gandalf | L12: 2 | M12: 849 | N12: 1698
I13: 2013-01-04 | J13: Tallinn | K13: Eldar | L13: 3 | M13: 465 | N13: 1395
I14: 2013-01-04 | J14: Tartu | K14: Balrog | L14: 5 | M14: 419 | N14: 2095
I15: 2013-01-07 | J15: Pärnu | K15: Eldar | L15: 3 | M15: 465 | N15: 1395
I16: 2013-01-07 | J16: Tallinn | K16: Faram | L16: 1 | M16: 599 | N16: 599
I17: 2013-01-07 | J17: Valga | K17: Balrog | L17: 6 | M17: 419 | N17: 2514
I18: 2013-01-07 | J18: Valga | K18: Frodo | L18: 1 | M18: 870 | N18: 870
I19: 2013-01-09 | J19: Tallinn | K19: Grimbold | L19: 6 | M19: 1149 | N19: 6894
I20: 2013-01-10 | J20: Pärnu | K20: Elend | L20: 1 | M20: 920 | N20: 920
I21: 2013-01-10 | J21: Pärnu | K21: Rohan | L21: 4 | M21: 340 | N21: 1360
I22: 2013-01-10 | J22: Tartu | K22: Sauron | L22: 2 | M22: 339 | N22: 678
B23: Antud linnades müüdud arvutite arv ja maksumus | I23: 2013-01-11 | J23: Tallinn | K23: Frodo | L23: 1 | M23: 870 | N23: 870
B24: Linn | F24: Arv | G24: Maksumus | I24: 2013-01-11 | J24: Tartu | K24: Balrog | L24: 2 | M24: 419 | N24: 838
B25: Tallinn | F25: =DSUM(AM_1, "Arv", B24:B26) -> 53 | G25: =DSUM(AM_1, "Maksumus", B24:B26) -> 32767 | I25: 2013-01-11 | J25: Valga | K25: Aragorn | L25: 1 | M25: 499 | N25: 499
B26: Tartu | I26: 2013-01-14 | J26: Pärnu | K26: Gandalf | L26: 3 | M26: 849 | N26: 2547
I27: 2013-01-14 | J27: Tartu | K27: Frodo | L27: 4 | M27: 870 | N27: 3480
I28: 2013-01-14 | J28: Valga | K28: Kalvar | L28: 2 | M28: 699 | N28: 1398
B29: Linn | C29: Arvuti | F29: Arv | G29: Maksumus | I29: 2013-01-16 | J29: Tallinn | K29: Arven | L29: 5 | M29: 369 | N29: 1845
B30: Tallinn | C30: Aragorn | F30: =DSUM(AM_1, "Arv", B29:C30) -> 3 | G30: =DSUM(AM_1, "Maksumus", B29:C30) -> 1497 | I30: 2013-01-17 | J30: Tallinn | K30: Balrog | L30: 7 | M30: 419 | N30: 2933
I31: 2013-01-17 | J31: Tartu | K31: Aragorn | L31: 3 | M31: 499 | N31: 1497
I32: 2013-01-18 | J32: Pärnu | K32: Eldar | L32: 1 | M32: 465 | N32: 465
B33: Arvuti | C33: Kuupäev | D33: Kuupäev | F33: Arv | G33: Maksumus | I33: 2013-01-18 | J33: Tallinn | K33: Aragorn | L33: 1 | M33: 499 | N33: 499
B34: Aragorn | C34: >=01.01.13 | D34: <=15.01.13 | F34: =DSUM(AM_1, "Arv", B33:D34) -> 3 | G34: =DSUM(AM_1, "Maksumus", B33:D34) -> 1497 | I34: 2013-01-19 | J34: Tallinn | K34: Frodo | L34: 3 | M34: 870 | N34: 2610
I35: 2013-01-19 | J35: Tartu | K35: Kalvar | L35: 1 | M35: 699 | N35: 699
I36: 2013-01-19 | J36: Võru | K36: Elend | L36: 5 | M36: 920 | N36: 4600
I37: 2013-01-20 | J37: Tallinn | K37: Elend | L37: 2 | M37: 920 | N37: 1840
I38: 2013-01-20 | J38: Võru | K38: Sauron | L38: 3 | M38: 339 | N38: 1017
I39: 2013-01-21 | J39: Pärnu | K39: Arven | L39: 1 | M39: 369 | N39: 369
I40: 2013-01-25 | J40: Võru | K40: Sauron | L40: 1 | M40: 339 | N40: 339
I41: 2013-01-26 | J41: Pärnu | K41: Gandalf | L41: 2 | M41: 849 | N41: 1698

Sheet P_abi
B2: Puidu hinnkiri
B4: Liik | C4: Sort
C5: 1 | D5: 2 | E5: 3
B6: haab | C6: 50 | D6: 45 | E6: 40
B7: kask | C7: 70 | D7: 63 | E7: 56
B8: kuusk | C8: 80 | D8: 72 | E8: 64
B9: küte | C9: 47 | D9: 42 | E9: 38
B10: lepp | C10: 65 | D10: 59 | E10: 52
B11: mänd | C11: 75 | D11: 68 | E11: 60
B12: saar | C12: 85 | D12: 77 | E12: 68
B13: tamm | C13: 110 | D13: 99 | E13: 88
B14: vaher | C14: 95 | D14: 86 | E14: 76
B18: P_müüjad | D18: Maakonnad
B19: Karu | D19: Harju
B20: Hunt | D20: Lääne
B21: Jänes | D21: Paide
B22: Rebane | D22: Pärnu
B23: Siil | D23: Rapla
B24: Põder | D24: Valga
B25: Ilves | D25: Viljandi
D26: Võru
B29: P_ostjad | C29: Maakond
B30: Haab | C30: Pärnu
B31: Ilves | C31: Lääne
B32: Juur | C32: Pärnu
B33: Kaasik | C33: Pärnu
B34: Karu | C34: Lääne
B35: Kask | C35: Pärnu
B36: Kass | C36: Paide
B37: Kaun | C37: Pärnu
B38: Kuusik | C38: Viljandi
B39: Kuusk | C39: Lääne
B40: Känd | C40: Harju
B41: Lepik | C41: Paide
B42: Lepp | C42: Viljandi
B43: Lind | C43: Valga
B44: Luik | C44: Viljandi
B45: Mänd | C45: Harju
B46: Paju | C46: Võru
B47: Pihel | C47: Rapla
B48: Saar | C48: Valga
B49: Seen | C49: Võru
B50: Tuvi | C50: Harju
B51: Vaher | C51: Rapla
B52: Varblane | C52: Harju
B53: Vares | C53: Rapla
